{"text_format":"1","workbook":"xlsx","n_sheets":4,"sheets":["Základní údaje","Rozpis úklidu","Karty úklidu","Činnosti úklidu"],"not_rendered":{"charts":0,"images":0,"macros":1,"external_links":0,"defined_names":3,"comments":3,"pivot_tables":0},"unopened":[],"bounds":{"document_bytes":16777216,"sheet_cells":100000,"rows_first":2000,"rows_last":500,"rows_between":2000,"halvings":0,"cell_chars":16384,"cell_head_chars":4096},"cells_cut":0,"cells_raw":0,"read":"whole","date_system":"1900"}

{"sheet":"Základní údaje","index":0,"n_rows":15,"n_cols":8,"rows_kept":15,"cut":false,"hidden":false,"merged":[[8,3,8,6],[1,0,1,1]]}
["kolej: Rooseveltova, VŠE"]
["OBDOBÍ:"]
["2020-07-01","2024-06-30"]
["Identifikace subjektu podávajícího nabídku:"]
["Název subjektu:"]
["IČ:"]
["Sídlo:"]
["Zapsaná v:"]
[null,null,null,"Předpoklad roční inflace"]
[null,null,null,"1. rok","2. rok","3. rok","4. rok"]
["CENA pracovní dny [Kč/hodinu/člověka]:",null,{"$f":"IF(B11<>0,B12/B11,0)","v":0},0,0,0,0]
["CENA víkendy [Kč/hodinu/člověka]:",null,{"$f":"IF(B11<>0,(5*B11+2*B12)/7/B11,0)","v":0},1,{"$f":"1+E11","v":1},{"$f":"1+F11","v":1},1]
[null,null,null,1,{"$f":"+D13*E12","v":1},{"$f":"+E13*F12","v":1},1,{"$f":"SUM(D13:G13)/4","v":1}]
[]
["NABÍDKOVÁ CENA CELKEM ZA ZAKÁZKU:",{"$f":"'Rozpis úklidu'!B72:D72","v":0}]

{"sheet":"Rozpis úklidu","index":1,"n_rows":143,"n_cols":19,"rows_kept":143,"cut":false,"hidden":false,"merged":[[71,1,71,3]]}
[{"$f":"'Základní údaje'!A1","v":"kolej: Rooseveltova, VŠE"},{"$f":"'Základní údaje'!A2","v":"OBDOBÍ:"},{"$f":"'Základní údaje'!A3","v":"2020-07-01"},{"$f":"'Základní údaje'!B3","v":"2024-06-30"}]
["Cena za 1 úklidovou hodinu:",{"$f":"'Základní údaje'!B11","v":0},"Kč/hod."]
["Úklidová jednotka","plocha\n[m²]","kusy\n[-]","počet\núklidových jednotek","CELKEM\n[m²]\n[ks]","uklízí se","počet úklidů","sezonní\ntýden\nod","sezonní\ntýden\ndo","uklízí se v\npracovní dny","uklízí se o\nvíkendech","Popis činnosti","doporučený čas na úklidovou jednotku\n[min]","Navrhovaný čas na úklidovou jednotku\n[min.]","celkový čas úklidu všech úklidových jednotek\n[hod.]","Cena za úklidovou jednotku\n[Kč]","cena celkem za všechny úklidové jednotky \n(prac. dny)\n[Kč]","Cena celkem za období úklidu\n[Kč]","Poznámka"]
["výtah velký",null,1,1,{"$f":"B4*D4+C4*D4","v":1},"denně",1,null,null,1,0,"Úklidová činnost č. 11",10,null,{"$f":"IF(N4=0,M4*D4/60,N4*D4/60)","v":0.16666666666666666},{"$f":"ROUND(IF(N4=0,M4/60*$B$2,N4/60*$B$2),0)","v":0},{"$f":"P4*D4","v":0},{"$f":"IF(F4=\"denně\",Q4*G4*$B$68,IF(F4=\"týdně\",Q4*G4*$B$69,IF(F4=\"měsíčně\",Q4*G4*$B$70,IF(F4=\"čtvrtletně\",Q4*G4*4*$B$71,IF(F4=\"ročně\",Q4*G4*$B$71,G4*Q4*$B$71)))))*'Základní údaje'!$H$13*IF(K46=1,'Základní údaje'!$C$12,1)","v":0}]
["výtah malý",null,1,1,1,"denně",1,null,null,1,0,"Úklidová činnost č. 11",8,null,0.13333333333333333,0,0,{"$f":"IF(F5=\"denně\",Q5*G5*$B$68,IF(F5=\"týdně\",Q5*G5*$B$69,IF(F5=\"měsíčně\",Q5*G5*$B$70,IF(F5=\"čtvrtletně\",Q5*G5*4*$B$71,IF(F5=\"ročně\",Q5*G5*$B$71,G5*Q5*$B$71)))))*'Základní údaje'!$H$13*IF(K4=1,'Základní údaje'!$C$12,1)","v":0}]
["patro chodba 2-6NP",107,null,5,535,"denně",1,null,null,1,0,"Úklidová činnost č, 1",18,null,1.5,0,0,{"$f":"IF(F6=\"denně\",Q6*G6*$B$68,IF(F6=\"týdně\",Q6*G6*$B$69,IF(F6=\"měsíčně\",Q6*G6*$B$70,IF(F6=\"čtvrtletně\",Q6*G6*4*$B$71,IF(F6=\"ročně\",Q6*G6*$B$71,G6*Q6*$B$71)))))*'Základní údaje'!$H$13*IF(K5=1,'Základní údaje'!$C$12,1)","v":0}]
["patro chodba 7 NP",97,null,1,97,"denně",1,null,null,1,0,"Úklidová činnost č, 1",16,null,0.26666666666666666,0,0,{"$f":"IF(F7=\"denně\",Q7*G7*$B$68,IF(F7=\"týdně\",Q7*G7*$B$69,IF(F7=\"měsíčně\",Q7*G7*$B$70,IF(F7=\"čtvrtletně\",Q7*G7*4*$B$71,IF(F7=\"ročně\",Q7*G7*$B$71,G7*Q7*$B$71)))))*'Základní údaje'!$H$13*IF(K6=1,'Základní údaje'!$C$12,1)","v":0}]
["patro chodba 1NP",156,null,1,156,"denně",1,null,null,1,0,"Úklidová činnost č, 1",26,null,0.43333333333333335,0,0,{"$f":"IF(F8=\"denně\",Q8*G8*$B$68,IF(F8=\"týdně\",Q8*G8*$B$69,IF(F8=\"měsíčně\",Q8*G8*$B$70,IF(F8=\"čtvrtletně\",Q8*G8*4*$B$71,IF(F8=\"ročně\",Q8*G8*$B$71,G8*Q8*$B$71)))))*'Základní údaje'!$H$13*IF(K7=1,'Základní údaje'!$C$12,1)","v":0}]
["schodiště",40,null,7,280,"denně",1,null,null,1,0,"Úklidová činnost č, 1",10,null,1.1666666666666667,0,0,{"$f":"IF(F9=\"denně\",Q9*G9*$B$68,IF(F9=\"týdně\",Q9*G9*$B$69,IF(F9=\"měsíčně\",Q9*G9*$B$70,IF(F9=\"čtvrtletně\",Q9*G9*4*$B$71,IF(F9=\"ročně\",Q9*G9*$B$71,G9*Q9*$B$71)))))*'Základní údaje'!$H$13*IF(K8=1,'Základní údaje'!$C$12,1)","v":0}]
["tv místnost",49,null,1,49,"denně",1,null,null,1,0,"Úklidová činnost č. 3",12,null,0.2,0,0,{"$f":"IF(F10=\"denně\",Q10*G10*$B$68,IF(F10=\"týdně\",Q10*G10*$B$69,IF(F10=\"měsíčně\",Q10*G10*$B$70,IF(F10=\"čtvrtletně\",Q10*G10*4*$B$71,IF(F10=\"ročně\",Q10*G10*$B$71,G10*Q10*$B$71)))))*'Základní údaje'!$H$13*IF(K9=1,'Základní údaje'!$C$12,1)","v":0}]
["posilovna",30,null,1,30,"denně",1,null,null,1,0,"Úklidová činnost č. 3",15,null,0.25,0,0,{"$f":"IF(F11=\"denně\",Q11*G11*$B$68,IF(F11=\"týdně\",Q11*G11*$B$69,IF(F11=\"měsíčně\",Q11*G11*$B$70,IF(F11=\"čtvrtletně\",Q11*G11*4*$B$71,IF(F11=\"ročně\",Q11*G11*$B$71,G11*Q11*$B$71)))))*'Základní údaje'!$H$13*IF(K10=1,'Základní údaje'!$C$12,1)","v":0}]
["studovna",27,null,2,54,"denně",1,null,null,1,0,"Úklidová činnost č. 3",7,null,0.23333333333333334,0,0,{"$f":"IF(F12=\"denně\",Q12*G12*$B$68,IF(F12=\"týdně\",Q12*G12*$B$69,IF(F12=\"měsíčně\",Q12*G12*$B$70,IF(F12=\"čtvrtletně\",Q12*G12*4*$B$71,IF(F12=\"ročně\",Q12*G12*$B$71,G12*Q12*$B$71)))))*'Základní údaje'!$H$13*IF(K11=1,'Základní údaje'!$C$12,1)","v":0}]
["sušárna +prádelna",15,null,1,15,"denně",1,null,null,1,0,"Úklidová činnost č. 4",15,null,0.25,0,0,{"$f":"IF(F13=\"denně\",Q13*G13*$B$68,IF(F13=\"týdně\",Q13*G13*$B$69,IF(F13=\"měsíčně\",Q13*G13*$B$70,IF(F13=\"čtvrtletně\",Q13*G13*4*$B$71,IF(F13=\"ročně\",Q13*G13*$B$71,G13*Q13*$B$71)))))*'Základní údaje'!$H$13*IF(K12=1,'Základní údaje'!$C$12,1)","v":0}]
["obyvák",121,null,2,242,"denně",1,null,null,1,0,"Úklidová činnost č. 3",40,null,1.3333333333333333,0,0,{"$f":"IF(F14=\"denně\",Q14*G14*$B$68,IF(F14=\"týdně\",Q14*G14*$B$69,IF(F14=\"měsíčně\",Q14*G14*$B$70,IF(F14=\"čtvrtletně\",Q14*G14*4*$B$71,IF(F14=\"ročně\",Q14*G14*$B$71,G14*Q14*$B$71)))))*'Základní údaje'!$H$13*IF(K13=1,'Základní údaje'!$C$12,1)","v":0}]
["kanceláře+zázemí",41,null,1,41,"denně",1,null,null,1,0,"Úklidová činnost č. 3",10,null,0.16666666666666666,0,0,{"$f":"IF(F15=\"denně\",Q15*G15*$B$68,IF(F15=\"týdně\",Q15*G15*$B$69,IF(F15=\"měsíčně\",Q15*G15*$B$70,IF(F15=\"čtvrtletně\",Q15*G15*4*$B$71,IF(F15=\"ročně\",Q15*G15*$B$71,G15*Q15*$B$71)))))*'Základní údaje'!$H$13*IF(K14=1,'Základní údaje'!$C$12,1)","v":0}]
["WC suterén",null,1,1,1,"denně",1,null,null,1,0,"Úklidová činnost č. 14",8,null,0.13333333333333333,0,0,{"$f":"IF(F16=\"denně\",Q16*G16*$B$68,IF(F16=\"týdně\",Q16*G16*$B$69,IF(F16=\"měsíčně\",Q16*G16*$B$70,IF(F16=\"čtvrtletně\",Q16*G16*4*$B$71,IF(F16=\"ročně\",Q16*G16*$B$71,G16*Q16*$B$71)))))*'Základní údaje'!$H$13*IF(K15=1,'Základní údaje'!$C$12,1)","v":0}]
["HYGIENICKÉ ZÁZEMÍ 1.NP",35,null,1,35,"denně",1,null,null,1,0,"Úklidová činnost č. 14 a 15",40,null,0.66666666666666663,0,0,{"$f":"IF(F17=\"denně\",Q17*G17*$B$68,IF(F17=\"týdně\",Q17*G17*$B$69,IF(F17=\"měsíčně\",Q17*G17*$B$70,IF(F17=\"čtvrtletně\",Q17*G17*4*$B$71,IF(F17=\"ročně\",Q17*G17*$B$71,G17*Q17*$B$71)))))*'Základní údaje'!$H$13*IF(K16=1,'Základní údaje'!$C$12,1)","v":0}]
["WC 2.NP-7. NP",27,null,6,162,"denně",1,null,null,1,0,"Úklidová činnost č. 14",10,null,1,0,0,{"$f":"IF(F18=\"denně\",Q18*G18*$B$68,IF(F18=\"týdně\",Q18*G18*$B$69,IF(F18=\"měsíčně\",Q18*G18*$B$70,IF(F18=\"čtvrtletně\",Q18*G18*4*$B$71,IF(F18=\"ročně\",Q18*G18*$B$71,G18*Q18*$B$71)))))*'Základní údaje'!$H$13*IF(K17=1,'Základní údaje'!$C$12,1)","v":0}]
["kuchyňky",90,null,1,90,"denně",1,null,null,1,0,"Úklidová činnost č. 5",41,null,0.68333333333333335,0,0,{"$f":"IF(F19=\"denně\",Q19*G19*$B$68,IF(F19=\"týdně\",Q19*G19*$B$69,IF(F19=\"měsíčně\",Q19*G19*$B$70,IF(F19=\"čtvrtletně\",Q19*G19*4*$B$71,IF(F19=\"ročně\",Q19*G19*$B$71,G19*Q19*$B$71)))))*'Základní údaje'!$H$13*IF(K18=1,'Základní údaje'!$C$12,1)","v":0}]
["výtah velký - týdení úklid",null,1,1,1,"týdně",1,null,null,1,0,"Úklidová činnost č. 11",20,null,0.33333333333333331,0,0,{"$f":"IF(F20=\"denně\",Q20*G20*$B$68,IF(F20=\"týdně\",Q20*G20*$B$69,IF(F20=\"měsíčně\",Q20*G20*$B$70,IF(F20=\"čtvrtletně\",Q20*G20*4*$B$71,IF(F20=\"ročně\",Q20*G20*$B$71,G20*Q20*$B$71)))))*'Základní údaje'!$H$13*IF(K64=1,'Základní údaje'!$C$12,1)","v":0}]
["výtah malý - týdenní úklid",null,1,2,2,"týdně",1,null,null,1,0,"Úklidová činnost č. 11",16,null,0.53333333333333333,0,0,{"$f":"IF(F21=\"denně\",Q21*G21*$B$68,IF(F21=\"týdně\",Q21*G21*$B$69,IF(F21=\"měsíčně\",Q21*G21*$B$70,IF(F21=\"čtvrtletně\",Q21*G21*4*$B$71,IF(F21=\"ročně\",Q21*G21*$B$71,G21*Q21*$B$71)))))*'Základní údaje'!$H$13*IF(K20=1,'Základní údaje'!$C$12,1)","v":0}]
["přilehlé zábradlí",null,1,21,21,"týdně",1,null,null,1,0,"otřít zabradlí a parapet a utřít prach, odstranit pavučiny",3,null,1.05,0,0,{"$f":"IF(F22=\"denně\",Q22*G22*$B$68,IF(F22=\"týdně\",Q22*G22*$B$69,IF(F22=\"měsíčně\",Q22*G22*$B$70,IF(F22=\"čtvrtletně\",Q22*G22*4*$B$71,IF(F22=\"ročně\",Q22*G22*$B$71,G22*Q22*$B$71)))))*'Základní údaje'!$H$13*IF(K21=1,'Základní údaje'!$C$12,1)","v":0}]
["tělocvična",81,null,1,81,"týdně",1,null,null,1,0,"Úklidová činnost č. 3",41,null,0.68333333333333335,0,0,{"$f":"IF(F23=\"denně\",Q23*G23*$B$68,IF(F23=\"týdně\",Q23*G23*$B$69,IF(F23=\"měsíčně\",Q23*G23*$B$70,IF(F23=\"čtvrtletně\",Q23*G23*4*$B$71,IF(F23=\"ročně\",Q23*G23*$B$71,G23*Q23*$B$71)))))*'Základní údaje'!$H$13*IF(K22=1,'Základní údaje'!$C$12,1)","v":0}]
["místnost úklízeček a úklid.prost.",15,null,1,15,"týdně",1,null,null,1,0,"Úklidová činnost č. 3",15,null,0.25,0,0,{"$f":"IF(F24=\"denně\",Q24*G24*$B$68,IF(F24=\"týdně\",Q24*G24*$B$69,IF(F24=\"měsíčně\",Q24*G24*$B$70,IF(F24=\"čtvrtletně\",Q24*G24*4*$B$71,IF(F24=\"ročně\",Q24*G24*$B$71,G24*Q24*$B$71)))))*'Základní údaje'!$H$13*IF(K23=1,'Základní údaje'!$C$12,1)","v":0}]
["sklad lůžkovin",23,null,1,23,"týdně",3,null,null,1,0,"Úklidová činnost č. 3",6,null,0.1,0,0,{"$f":"IF(F25=\"denně\",Q25*G25*$B$68,IF(F25=\"týdně\",Q25*G25*$B$69,IF(F25=\"měsíčně\",Q25*G25*$B$70,IF(F25=\"čtvrtletně\",Q25*G25*4*$B$71,IF(F25=\"ročně\",Q25*G25*$B$71,G25*Q25*$B$71)))))*'Základní údaje'!$H$13*IF(K24=1,'Základní údaje'!$C$12,1)","v":0}]
["uklízečky soc. zařízení ",5,null,1,5,"týdně",3,null,null,1,0,"Úklidová činnost č. 14 a 15",3,null,0.05,0,0,{"$f":"IF(F26=\"denně\",Q26*G26*$B$68,IF(F26=\"týdně\",Q26*G26*$B$69,IF(F26=\"měsíčně\",Q26*G26*$B$70,IF(F26=\"čtvrtletně\",Q26*G26*4*$B$71,IF(F26=\"ročně\",Q26*G26*$B$71,G26*Q26*$B$71)))))*'Základní údaje'!$H$13*IF(K25=1,'Základní údaje'!$C$12,1)","v":0}]
["balkon",4,null,18,72,"týdně",1,null,null,1,0,"Úklidová činnost č. 2",7,null,2.1,0,0,{"$f":"IF(F27=\"denně\",Q27*G27*$B$68,IF(F27=\"týdně\",Q27*G27*$B$69,IF(F27=\"měsíčně\",Q27*G27*$B$70,IF(F27=\"čtvrtletně\",Q27*G27*4*$B$71,IF(F27=\"ročně\",Q27*G27*$B$71,G27*Q27*$B$71)))))*'Základní údaje'!$H$13*IF(K26=1,'Základní údaje'!$C$12,1)","v":0}]
["dvoulůžkový - buňka -  HOTEL",15,null,3,45,"týdně",4,null,null,1,1,"Úklidová činnost č. 8",25,null,1.25,0,0,{"$f":"IF(F28=\"denně\",Q28*G28*$B$68,IF(F28=\"týdně\",Q28*G28*$B$69,IF(F28=\"měsíčně\",Q28*G28*$B$70,IF(F28=\"čtvrtletně\",Q28*G28*4*$B$71,IF(F28=\"ročně\",Q28*G28*$B$71,G28*Q28*$B$71)))))*'Základní údaje'!$H$13*IF(K27=1,'Základní údaje'!$C$12,1)","v":0}]
["třílůžkový - buňka -  HOTEL",23,null,1,23,"týdně",4,null,null,1,1,"Úklidová činnost č. 8",38,null,0.6333333333333333,0,0,{"$f":"IF(F29=\"denně\",Q29*G29*$B$68,IF(F29=\"týdně\",Q29*G29*$B$69,IF(F29=\"měsíčně\",Q29*G29*$B$70,IF(F29=\"čtvrtletně\",Q29*G29*4*$B$71,IF(F29=\"ročně\",Q29*G29*$B$71,G29*Q29*$B$71)))))*'Základní údaje'!$H$13*IF(K28=1,'Základní údaje'!$C$12,1)","v":0}]
["chodba - buňka -  HOTEL",6,null,3,18,"týdně",4,null,null,1,1,"Úklidová činnost č. 8",20,null,1,0,0,{"$f":"IF(F30=\"denně\",Q30*G30*$B$68,IF(F30=\"týdně\",Q30*G30*$B$69,IF(F30=\"měsíčně\",Q30*G30*$B$70,IF(F30=\"čtvrtletně\",Q30*G30*4*$B$71,IF(F30=\"ročně\",Q30*G30*$B$71,G30*Q30*$B$71)))))*'Základní údaje'!$H$13*IF(K29=1,'Základní údaje'!$C$12,1)","v":0}]
["sprcha - buňka -  HOTEL",2,null,3,6,"týdně",4,null,null,1,1,"Úklidová činnost č. 15",7,null,0.35,0,0,{"$f":"IF(F31=\"denně\",Q31*G31*$B$68,IF(F31=\"týdně\",Q31*G31*$B$69,IF(F31=\"měsíčně\",Q31*G31*$B$70,IF(F31=\"čtvrtletně\",Q31*G31*4*$B$71,IF(F31=\"ročně\",Q31*G31*$B$71,G31*Q31*$B$71)))))*'Základní údaje'!$H$13*IF(K30=1,'Základní údaje'!$C$12,1)","v":0}]
["WC - buňka -  HOTEL",2,null,3,6,"týdně",4,null,null,1,1,"Úklidová činnost č. 14",10,null,0.5,0,0,{"$f":"IF(F32=\"denně\",Q32*G32*$B$68,IF(F32=\"týdně\",Q32*G32*$B$69,IF(F32=\"měsíčně\",Q32*G32*$B$70,IF(F32=\"čtvrtletně\",Q32*G32*4*$B$71,IF(F32=\"ročně\",Q32*G32*$B$71,G32*Q32*$B$71)))))*'Základní údaje'!$H$13*IF(K31=1,'Základní údaje'!$C$12,1)","v":0}]
["jednolůžkový samostatný -  HOTEL",10,null,1,10,"týdně",4,null,null,1,1,"Úklidová činnost č. 9",17,null,0.28333333333333333,0,0,{"$f":"IF(F33=\"denně\",Q33*G33*$B$68,IF(F33=\"týdně\",Q33*G33*$B$69,IF(F33=\"měsíčně\",Q33*G33*$B$70,IF(F33=\"čtvrtletně\",Q33*G33*4*$B$71,IF(F33=\"ročně\",Q33*G33*$B$71,G33*Q33*$B$71)))))*'Základní údaje'!$H$13*IF(K32=1,'Základní údaje'!$C$12,1)","v":0}]
["dvoulůžkový samostatný -  HOTEL",15,null,5,75,"týdně",4,null,null,1,1,"Úklidová činnost č. 9",25,null,2.0833333333333335,0,0,{"$f":"IF(F34=\"denně\",Q34*G34*$B$68,IF(F34=\"týdně\",Q34*G34*$B$69,IF(F34=\"měsíčně\",Q34*G34*$B$70,IF(F34=\"čtvrtletně\",Q34*G34*4*$B$71,IF(F34=\"ročně\",Q34*G34*$B$71,G34*Q34*$B$71)))))*'Základní údaje'!$H$13*IF(K33=1,'Základní údaje'!$C$12,1)","v":0}]
["trojlůžkový samostatný -  HOTEL",26,null,1,0,"týdně",4,null,null,1,1,"Úklidová činnost č. 9",43,null,0.71666666666666667,0,0,{"$f":"IF(F35=\"denně\",Q35*G35*$B$68,IF(F35=\"týdně\",Q35*G35*$B$69,IF(F35=\"měsíčně\",Q35*G35*$B$70,IF(F35=\"čtvrtletně\",Q35*G35*4*$B$71,IF(F35=\"ročně\",Q35*G35*$B$71,G35*Q35*$B$71)))))*'Základní údaje'!$H$13*IF(K34=1,'Základní údaje'!$C$12,1)","v":0}]
["klub",76,null,1,{"$f":"B36*D36+C36*D36","v":76},"měsíčně",1,null,null,1,0,"Úklidová činnost č. 3",19,null,{"$f":"IF(N36=0,M36*D36/60,N36*D36/60)","v":0.31666666666666665},{"$f":"ROUND(IF(N36=0,M36/60*$B$2,N36/60*$B$2),0)","v":0},{"$f":"P36*D36","v":0},{"$f":"IF(F36=\"denně\",Q36*G36*$B$68,IF(F36=\"týdně\",Q36*G36*$B$69,IF(F36=\"měsíčně\",Q36*G36*$B$70,IF(F36=\"čtvrtletně\",Q36*G36*4*$B$71,IF(F36=\"ročně\",Q36*G36*$B$71,G36*Q36*$B$71)))))*'Základní údaje'!$H$13*IF(K19=1,'Základní údaje'!$C$12,1)","v":0}]
["sklad- čistící prostředky",30,null,1,30,"čtvrtletně",1,null,null,1,0,"Úklidová činnost č. 3",8,null,0.13333333333333333,0,0,{"$f":"IF(F37=\"denně\",Q37*G37*$B$68,IF(F37=\"týdně\",Q37*G37*$B$69,IF(F37=\"měsíčně\",Q37*G37*$B$70,IF(F37=\"čtvrtletně\",Q37*G37*4*$B$71,IF(F37=\"ročně\",Q37*G37*$B$71,G37*Q37*$B$71)))))*'Základní údaje'!$H$13*IF(K3=1,'Základní údaje'!$C$12,1)","v":0}]
["06 výměník",43,null,1,43,"čtvrtletně",1,null,null,1,0,"Úklidová činnost č. 3",36,null,0.6,0,0,{"$f":"IF(F38=\"denně\",Q38*G38*$B$68,IF(F38=\"týdně\",Q38*G38*$B$69,IF(F38=\"měsíčně\",Q38*G38*$B$70,IF(F38=\"čtvrtletně\",Q38*G38*4*$B$71,IF(F38=\"ročně\",Q38*G38*$B$71,G38*Q38*$B$71)))))*'Základní údaje'!$H$13*IF(K37=1,'Základní údaje'!$C$12,1)","v":0}]
["agregát",15,null,1,15,"čtvrtletně",1,null,null,1,0,"Úklidová činnost č. 3",13,null,0.21666666666666667,0,0,{"$f":"IF(F39=\"denně\",Q39*G39*$B$68,IF(F39=\"týdně\",Q39*G39*$B$69,IF(F39=\"měsíčně\",Q39*G39*$B$70,IF(F39=\"čtvrtletně\",Q39*G39*4*$B$71,IF(F39=\"ročně\",Q39*G39*$B$71,G39*Q39*$B$71)))))*'Základní údaje'!$H$13*IF(K38=1,'Základní údaje'!$C$12,1)","v":0}]
["údržba",12,null,1,12,"čtvrtletně",1,null,null,1,0,"Úklidová činnost č. 3",10,null,0.16666666666666666,0,0,{"$f":"IF(F40=\"denně\",Q40*G40*$B$68,IF(F40=\"týdně\",Q40*G40*$B$69,IF(F40=\"měsíčně\",Q40*G40*$B$70,IF(F40=\"čtvrtletně\",Q40*G40*4*$B$71,IF(F40=\"ročně\",Q40*G40*$B$71,G40*Q40*$B$71)))))*'Základní údaje'!$H$13*IF(K39=1,'Základní údaje'!$C$12,1)","v":0}]
["jednolůžkový - buňka",12,null,7,84,"čtvrtletně",1,null,null,1,0,"Úklidová činnost č. 6",20,null,2.3333333333333335,0,0,{"$f":"IF(F41=\"denně\",Q41*G41*$B$68,IF(F41=\"týdně\",Q41*G41*$B$69,IF(F41=\"měsíčně\",Q41*G41*$B$70,IF(F41=\"čtvrtletně\",Q41*G41*4*$B$71,IF(F41=\"ročně\",Q41*G41*$B$71,G41*Q41*$B$71)))))*'Základní údaje'!$H$13*IF(K40=1,'Základní údaje'!$C$12,1)","v":0}]
["dvoulůžkový - buňka",15,null,56,840,"čtvrtletně",1,null,null,1,0,"Úklidová činnost č. 6",25,null,23.333333333333332,0,0,{"$f":"IF(F42=\"denně\",Q42*G42*$B$68,IF(F42=\"týdně\",Q42*G42*$B$69,IF(F42=\"měsíčně\",Q42*G42*$B$70,IF(F42=\"čtvrtletně\",Q42*G42*4*$B$71,IF(F42=\"ročně\",Q42*G42*$B$71,G42*Q42*$B$71)))))*'Základní údaje'!$H$13*IF(K41=1,'Základní údaje'!$C$12,1)","v":0}]
["třílůžkový - buňka",23,null,38,874,"čtvrtletně",1,null,null,1,0,"Úklidová činnost č. 6",38,null,24.066666666666666,0,0,{"$f":"IF(F43=\"denně\",Q43*G43*$B$68,IF(F43=\"týdně\",Q43*G43*$B$69,IF(F43=\"měsíčně\",Q43*G43*$B$70,IF(F43=\"čtvrtletně\",Q43*G43*4*$B$71,IF(F43=\"ročně\",Q43*G43*$B$71,G43*Q43*$B$71)))))*'Základní údaje'!$H$13*IF(K42=1,'Základní údaje'!$C$12,1)","v":0}]
["chodba - buňka",6,null,54,324,"čtvrtletně",1,null,null,1,0,"Úklidová činnost č. 6",30,null,27,0,0,{"$f":"IF(F44=\"denně\",Q44*G44*$B$68,IF(F44=\"týdně\",Q44*G44*$B$69,IF(F44=\"měsíčně\",Q44*G44*$B$70,IF(F44=\"čtvrtletně\",Q44*G44*4*$B$71,IF(F44=\"ročně\",Q44*G44*$B$71,G44*Q44*$B$71)))))*'Základní údaje'!$H$13*IF(K43=1,'Základní údaje'!$C$12,1)","v":0}]
["sprcha - buňka",2,null,54,108,"čtvrtletně",1,null,null,1,0,"Úklidová činnost č. 15",7,null,6.3,0,0,{"$f":"IF(F45=\"denně\",Q45*G45*$B$68,IF(F45=\"týdně\",Q45*G45*$B$69,IF(F45=\"měsíčně\",Q45*G45*$B$70,IF(F45=\"čtvrtletně\",Q45*G45*4*$B$71,IF(F45=\"ročně\",Q45*G45*$B$71,G45*Q45*$B$71)))))*'Základní údaje'!$H$13*IF(K44=1,'Základní údaje'!$C$12,1)","v":0}]
["WC - buňka",null,1,54,54,"čtvrtletně",1,null,null,1,0,"Úklidová činnost č. 14",8,null,7.2,0,0,{"$f":"IF(F46=\"denně\",Q46*G46*$B$68,IF(F46=\"týdně\",Q46*G46*$B$69,IF(F46=\"měsíčně\",Q46*G46*$B$70,IF(F46=\"čtvrtletně\",Q46*G46*4*$B$71,IF(F46=\"ročně\",Q46*G46*$B$71,G46*Q46*$B$71)))))*'Základní údaje'!$H$13*IF(K45=1,'Základní údaje'!$C$12,1)","v":0}]
["Okna (různé velikosti)",null,1,{"$f":"108+115+40+8+13+39","v":323},323,"ročně",1,null,null,1,0,"Úklidová činnost č. 12",20,null,107.66666666666667,0,0,{"$f":"IF(F47=\"denně\",Q47*G47*$B$68,IF(F47=\"týdně\",Q47*G47*$B$69,IF(F47=\"měsíčně\",Q47*G47*$B$70,IF(F47=\"čtvrtletně\",Q47*G47*4*$B$71,IF(F47=\"ročně\",Q47*G47*$B$71,G47*Q47*$B$71)))))*'Základní údaje'!$H$13*IF(K46=1,'Základní údaje'!$C$12,1)","v":0}]
["jednolůžkový samostatný",10,null,12,120,"sezonně",1,26,27,1,0,"Úklidová činnopst č. 6",33,null,6.6,0,0,{"$f":"IF(F48=\"denně\",Q48*G48*$B$68,IF(F48=\"týdně\",Q48*G48*$B$69,IF(F48=\"měsíčně\",Q48*G48*$B$70,IF(F48=\"čtvrtletně\",Q48*G48*4*$B$71,IF(F48=\"ročně\",Q48*G48*$B$71,G48*Q48*$B$71)))))*'Základní údaje'!$H$13*IF(K36=1,'Základní údaje'!$C$12,1)","v":0}]
["dvoulůžkový samostatný",15,null,55,825,"sezonně",1,26,27,1,0,"Úklidová činnopst č. 6",50,null,45.833333333333336,0,0,{"$f":"IF(F49=\"denně\",Q49*G49*$B$68,IF(F49=\"týdně\",Q49*G49*$B$69,IF(F49=\"měsíčně\",Q49*G49*$B$70,IF(F49=\"čtvrtletně\",Q49*G49*4*$B$71,IF(F49=\"ročně\",Q49*G49*$B$71,G49*Q49*$B$71)))))*'Základní údaje'!$H$13*IF(K48=1,'Základní údaje'!$C$12,1)","v":0}]
["trojlůžkový samostatný",26,null,6,156,"sezonně",1,26,27,1,0,"Úklidová činnopst č. 6",87,null,8.6999999999999993,0,0,{"$f":"IF(F50=\"denně\",Q50*G50*$B$68,IF(F50=\"týdně\",Q50*G50*$B$69,IF(F50=\"měsíčně\",Q50*G50*$B$70,IF(F50=\"čtvrtletně\",Q50*G50*4*$B$71,IF(F50=\"ročně\",Q50*G50*$B$71,G50*Q50*$B$71)))))*'Základní údaje'!$H$13*IF(K49=1,'Základní údaje'!$C$12,1)","v":0}]
["přebrání pokoje po ubytovaných",null,1,73,{"$f":"B51*D51+C51*D51","v":73},"sezonně",3,26,27,1,0,"Úklidová činnost č. 10",8,null,{"$f":"IF(N51=0,M51*D51/60,N51*D51/60)","v":9.7333333333333325},{"$f":"ROUND(IF(N51=0,M51/60*$B$2,N51/60*$B$2),0)","v":0},{"$f":"P51*D51","v":0},{"$f":"IF(F51=\"denně\",Q51*G51*$B$68,IF(F51=\"týdně\",Q51*G51*$B$69,IF(F51=\"měsíčně\",Q51*G51*$B$70,IF(F51=\"čtvrtletně\",Q51*G51*4*$B$71,IF(F51=\"ročně\",Q51*G51*$B$71,G51*Q51*$B$71)))))*'Základní údaje'!$H$13*IF(K50=1,'Základní údaje'!$C$12,1)","v":0}]
["jednolůžkový samostatný",10,null,12,120,"sezonně",1,36,37,1,0,"Úklidová činnost č. 6",33,null,6.6,0,0,{"$f":"IF(F52=\"denně\",Q52*G52*$B$68,IF(F52=\"týdně\",Q52*G52*$B$69,IF(F52=\"měsíčně\",Q52*G52*$B$70,IF(F52=\"čtvrtletně\",Q52*G52*4*$B$71,IF(F52=\"ročně\",Q52*G52*$B$71,G52*Q52*$B$71)))))*'Základní údaje'!$H$13*IF(K50=1,'Základní údaje'!$C$12,1)","v":0}]
["dvoulůžkový samostatný",15,null,55,825,"sezonně",1,36,37,1,0,"Úklidová činnost č. 6",50,null,45.833333333333336,0,0,{"$f":"IF(F53=\"denně\",Q53*G53*$B$68,IF(F53=\"týdně\",Q53*G53*$B$69,IF(F53=\"měsíčně\",Q53*G53*$B$70,IF(F53=\"čtvrtletně\",Q53*G53*4*$B$71,IF(F53=\"ročně\",Q53*G53*$B$71,G53*Q53*$B$71)))))*'Základní údaje'!$H$13*IF(K52=1,'Základní údaje'!$C$12,1)","v":0}]
["trojlůžkový samostatný",26,null,6,156,"sezonně",1,36,37,1,0,"Úklidová činnost č. 6",87,null,8.6999999999999993,0,0,{"$f":"IF(F54=\"denně\",Q54*G54*$B$68,IF(F54=\"týdně\",Q54*G54*$B$69,IF(F54=\"měsíčně\",Q54*G54*$B$70,IF(F54=\"čtvrtletně\",Q54*G54*4*$B$71,IF(F54=\"ročně\",Q54*G54*$B$71,G54*Q54*$B$71)))))*'Základní údaje'!$H$13*IF(K53=1,'Základní údaje'!$C$12,1)","v":0}]
["terasa",77,null,1,77,"sezonně",{"$f":"(I55-H55+1)*5","v":110},20,41,1,null,"zamést podlahu, vynést odpadky, umýt dveře včetně zárubní, otřít a urovnat nábytek",40,null,0.66666666666666663,0,0,{"$f":"IF(F55=\"denně\",Q55*G55*$B$68,IF(F55=\"týdně\",Q55*G55*$B$69,IF(F55=\"měsíčně\",Q55*G55*$B$70,IF(F55=\"čtvrtletně\",Q55*G55*4*$B$71,IF(F55=\"ročně\",Q55*G55*$B$71,G55*Q55*$B$71)))))*'Základní údaje'!$H$13*IF(K54=1,'Základní údaje'!$C$12,1)","v":0}]
["jednolůžkový - buňka -  HOTEL",12,null,4,48,"sezonně",24,26,37,1,1,"Úklidová činnost č. 8",20,null,1.3333333333333333,0,0,{"$f":"IF(F56=\"denně\",Q56*G56*$B$68,IF(F56=\"týdně\",Q56*G56*$B$69,IF(F56=\"měsíčně\",Q56*G56*$B$70,IF(F56=\"čtvrtletně\",Q56*G56*4*$B$71,IF(F56=\"ročně\",Q56*G56*$B$71,G56*Q56*$B$71)))))*'Základní údaje'!$H$13*IF(K55=1,'Základní údaje'!$C$12,1)","v":0}]
["dvoulůžkový - buňka -  HOTEL",15,null,27,405,"sezonně",24,26,37,1,1,"Úklidová činnost č. 8",25,null,11.25,0,0,{"$f":"IF(F57=\"denně\",Q57*G57*$B$68,IF(F57=\"týdně\",Q57*G57*$B$69,IF(F57=\"měsíčně\",Q57*G57*$B$70,IF(F57=\"čtvrtletně\",Q57*G57*4*$B$71,IF(F57=\"ročně\",Q57*G57*$B$71,G57*Q57*$B$71)))))*'Základní údaje'!$H$13*IF(K56=1,'Základní údaje'!$C$12,1)","v":0}]
["třílůžkový - buňka -  HOTEL",23,null,21,483,"sezonně",24,26,37,1,1,"Úklidová činnost č. 8",38,null,13.3,0,0,{"$f":"IF(F58=\"denně\",Q58*G58*$B$68,IF(F58=\"týdně\",Q58*G58*$B$69,IF(F58=\"měsíčně\",Q58*G58*$B$70,IF(F58=\"čtvrtletně\",Q58*G58*4*$B$71,IF(F58=\"ročně\",Q58*G58*$B$71,G58*Q58*$B$71)))))*'Základní údaje'!$H$13*IF(K57=1,'Základní údaje'!$C$12,1)","v":0}]
["chodba - buňka -  HOTEL",6,null,9,54,"sezonně",24,26,37,1,1,"Úklidová činnost č. 8",20,null,3,0,0,{"$f":"IF(F59=\"denně\",Q59*G59*$B$68,IF(F59=\"týdně\",Q59*G59*$B$69,IF(F59=\"měsíčně\",Q59*G59*$B$70,IF(F59=\"čtvrtletně\",Q59*G59*4*$B$71,IF(F59=\"ročně\",Q59*G59*$B$71,G59*Q59*$B$71)))))*'Základní údaje'!$H$13*IF(K58=1,'Základní údaje'!$C$12,1)","v":0}]
["sprcha - buňka -  HOTEL",2,null,9,18,"sezonně",24,26,37,1,1,"Úklidová činnost č. 15",7,null,1.05,0,0,{"$f":"IF(F60=\"denně\",Q60*G60*$B$68,IF(F60=\"týdně\",Q60*G60*$B$69,IF(F60=\"měsíčně\",Q60*G60*$B$70,IF(F60=\"čtvrtletně\",Q60*G60*4*$B$71,IF(F60=\"ročně\",Q60*G60*$B$71,G60*Q60*$B$71)))))*'Základní údaje'!$H$13*IF(K59=1,'Základní údaje'!$C$12,1)","v":0}]
["wc - buňka -  HOTEL",2,null,9,18,"sezonně",24,26,37,1,1,"Úklidová činnost č. 14",10,null,1.5,0,0,{"$f":"IF(F61=\"denně\",Q61*G61*$B$68,IF(F61=\"týdně\",Q61*G61*$B$69,IF(F61=\"měsíčně\",Q61*G61*$B$70,IF(F61=\"čtvrtletně\",Q61*G61*4*$B$71,IF(F61=\"ročně\",Q61*G61*$B$71,G61*Q61*$B$71)))))*'Základní údaje'!$H$13*IF(K60=1,'Základní údaje'!$C$12,1)","v":0}]
["jednolůžkový samostatný -  HOTEL",10,null,3,30,"sezonně",24,26,37,1,1,"Úklidová činnost č. 9",17,null,0.85,0,0,{"$f":"IF(F62=\"denně\",Q62*G62*$B$68,IF(F62=\"týdně\",Q62*G62*$B$69,IF(F62=\"měsíčně\",Q62*G62*$B$70,IF(F62=\"čtvrtletně\",Q62*G62*4*$B$71,IF(F62=\"ročně\",Q62*G62*$B$71,G62*Q62*$B$71)))))*'Základní údaje'!$H$13*IF(K61=1,'Základní údaje'!$C$12,1)","v":0}]
["dvoulůžkový samostatný -  HOTEL",15,null,27,405,"sezonně",24,26,37,1,1,"Úklidová činnost č. 9",25,null,11.25,0,0,{"$f":"IF(F63=\"denně\",Q63*G63*$B$68,IF(F63=\"týdně\",Q63*G63*$B$69,IF(F63=\"měsíčně\",Q63*G63*$B$70,IF(F63=\"čtvrtletně\",Q63*G63*4*$B$71,IF(F63=\"ročně\",Q63*G63*$B$71,G63*Q63*$B$71)))))*'Základní údaje'!$H$13*IF(K62=1,'Základní údaje'!$C$12,1)","v":0}]
["trojlůžkový samostatný -  HOTEL",26,null,3,0,"sezonně",24,26,37,1,1,"Úklidová činnost č. 9",43,null,2.15,0,0,{"$f":"IF(F64=\"denně\",Q64*G64*$B$68,IF(F64=\"týdně\",Q64*G64*$B$69,IF(F64=\"měsíčně\",Q64*G64*$B$70,IF(F64=\"čtvrtletně\",Q64*G64*4*$B$71,IF(F64=\"ročně\",Q64*G64*$B$71,G64*Q64*$B$71)))))*'Základní údaje'!$H$13*IF(K63=1,'Základní údaje'!$C$12,1)","v":0}]
[]
["Plocha celkem",{"$f":"SUMPRODUCT(B4:B64,D4:D64)","v":8415},"[m²]"]
["Počet kusů celkem",{"$f":"SUMPRODUCT(C4:C64,D4:D64)","v":477},"[-]"]
["Počet pracovních dnů úklidu:",{"$f":"NETWORKDAYS($C$1,$D$1,$A$78:$A$144)","v":1005},null,null,null,null,null,null,null,null,null,{"$f":"NETWORKDAYS(J68,K68,J69)","v":0}]
["Počet týdnů úklidu:",{"$f":"B71*52","v":208}]
["Počet měsíců úklidu:",{"$f":"B71*12","v":48}]
["Počet let úklidu",{"$f":"YEAR(D1)-YEAR(C1)","v":4}]
["CENA CELKEM:",{"$f":"ROUND(SUM(R4:R64),0)","v":0},null,null,"[Kč]"]
[]
[]
[]
[]
["svátky:","četnost úklidu","označení","období úklidu",null,null,"Kritéria"]
["2019-01-01","denně",0,"1. Q",null,null,{"$f":"$F$3","v":"uklízí se"}]
["2019-04-19","týdně",1,"2. Q",null,null,{"$f":"B78","v":"denně"}]
["2019-04-22","měsíčně",null,"3. Q"]
["2019-05-01","čtvrtletně",null,"4. Q",null,null,{"$f":"$F$3","v":"uklízí se"}]
["2019-05-08","ročně",null,"leden",null,null,{"$f":"B79","v":"týdně"}]
["2019-07-05","sezonně",null,"únor"]
["2019-10-28",null,null,"březen",null,null,{"$f":"$F$3","v":"uklízí se"}]
["2019-12-24",null,null,"duben",null,null,{"$f":"B80","v":"měsíčně"}]
["2019-12-25",null,null,"květen"]
["2019-12-26",null,null,"červen",null,null,{"$f":"$F$3","v":"uklízí se"}]
["2020-01-01",null,null,"červenec",null,null,{"$f":"B81","v":"čtvrtletně"}]
["2020-04-10",null,null,"srpen"]
["2020-04-13",null,null,"září",null,null,{"$f":"$F$3","v":"uklízí se"}]
["2020-05-01",null,null,"říjen",null,null,{"$f":"B82","v":"ročně"}]
["2020-05-08",null,null,"listopat"]
["2020-07-06",null,null,"prosinec"]
["2020-09-28"]
["2020-10-28"]
["2020-11-17"]
["2020-12-24"]
["2020-12-25"]
["2021-01-01"]
["2021-04-02"]
["2021-04-05"]
["2021-07-05"]
["2021-07-06"]
["2021-09-28"]
["2021-10-28"]
["2021-11-17"]
["2021-12-24"]
["2022-04-15"]
["2022-04-18"]
["2022-07-05"]
["2022-07-06"]
["2022-09-28"]
["2022-10-28"]
["2022-11-17"]
["2022-12-26"]
["2023-04-07"]
["2023-04-10"]
["2023-05-01"]
["2023-05-08"]
["2023-07-05"]
["2023-07-06"]
["2023-09-28"]
["2023-11-17"]
["2023-12-25"]
["2023-12-26"]
["2024-01-01"]
["2024-03-29"]
["2024-04-01"]
["2024-05-01"]
["2024-05-08"]
["2024-07-05"]
["2024-10-28"]
["2024-12-24"]
["2024-12-26"]
["2024-12-26"]
["2025-01-01"]
["2025-04-18"]
["2025-04-21"]
["2025-10-28"]
["2025-11-17"]
["2025-12-24"]
["2025-12-25"]
["2025-12-26"]

{"sheet":"Karty úklidu","index":2,"n_rows":112,"n_cols":7,"rows_kept":112,"cut":false,"hidden":false,"merged":[]}
["V komentáři jsou zkatky pro tisk"]
["Karta úklidu",null,{"$f":"'Rozpis úklidu'!$A$1","v":"kolej: Rooseveltova, VŠE"}]
["DENNÍ ÚKLID                       DNE:",{"$f":"NOW()","v":"2020-04-15T10:58:52.960"}]
[{"$f":"'Rozpis úklidu'!$A$3","v":"Úklidová jednotka"},{"$f":"'Rozpis úklidu'!$D$3","v":"počet\núklidových jednotek"},{"$f":"'Rozpis úklidu'!$L$3","v":"Popis činnosti"},{"$f":"'Rozpis úklidu'!$Q$3","v":"cena celkem za všechny úklidové jednotky \n(prac. dny)\n[Kč]"},"Správně\nuklizené\njednotky","Smluvní pokuta\n[Kč]","Poznámka"]
[{"$f":"'Rozpis úklidu'!A4","v":"výtah velký"},{"$f":"'Rozpis úklidu'!D4","v":1},{"$f":"'Rozpis úklidu'!L4","v":"Úklidová činnost č. 11"},{"$f":"'Rozpis úklidu'!P4*E5","v":0},1,{"$f":"IF(E5<B5,(B5-E5)*('Rozpis úklidu'!P4)*2,0)","v":0}]
[{"$f":"'Rozpis úklidu'!A5","v":"výtah malý"},{"$f":"'Rozpis úklidu'!D5","v":1},{"$f":"'Rozpis úklidu'!L5","v":"Úklidová činnost č. 11"},{"$f":"'Rozpis úklidu'!P5*E6","v":0},1,{"$f":"IF(E6<B6,(B6-E6)*('Rozpis úklidu'!P5)*2,0)","v":0}]
[{"$f":"'Rozpis úklidu'!A6","v":"patro chodba 2-6NP"},{"$f":"'Rozpis úklidu'!D6","v":5},{"$f":"'Rozpis úklidu'!L6","v":"Úklidová činnost č, 1"},{"$f":"'Rozpis úklidu'!P6*E7","v":0},5,{"$f":"IF(E7<B7,(B7-E7)*('Rozpis úklidu'!P6)*2,0)","v":0}]
[{"$f":"'Rozpis úklidu'!A7","v":"patro chodba 7 NP"},{"$f":"'Rozpis úklidu'!D7","v":1},{"$f":"'Rozpis úklidu'!L7","v":"Úklidová činnost č, 1"},{"$f":"'Rozpis úklidu'!P7*E8","v":0},1,{"$f":"IF(E8<B8,(B8-E8)*('Rozpis úklidu'!P7)*2,0)","v":0}]
[{"$f":"'Rozpis úklidu'!A8","v":"patro chodba 1NP"},{"$f":"'Rozpis úklidu'!D8","v":1},{"$f":"'Rozpis úklidu'!L8","v":"Úklidová činnost č, 1"},{"$f":"'Rozpis úklidu'!P8*E9","v":0},1,{"$f":"IF(E9<B9,(B9-E9)*('Rozpis úklidu'!P8)*2,0)","v":0}]
[{"$f":"'Rozpis úklidu'!A9","v":"schodiště"},{"$f":"'Rozpis úklidu'!D9","v":7},{"$f":"'Rozpis úklidu'!L9","v":"Úklidová činnost č, 1"},{"$f":"'Rozpis úklidu'!P9*E10","v":0},7,{"$f":"IF(E10<B10,(B10-E10)*('Rozpis úklidu'!P9)*2,0)","v":0}]
[{"$f":"'Rozpis úklidu'!A10","v":"tv místnost"},{"$f":"'Rozpis úklidu'!D10","v":1},{"$f":"'Rozpis úklidu'!L10","v":"Úklidová činnost č. 3"},{"$f":"'Rozpis úklidu'!P10*E11","v":0},1,{"$f":"IF(E11<B11,(B11-E11)*('Rozpis úklidu'!P10)*2,0)","v":0}]
[{"$f":"'Rozpis úklidu'!A11","v":"posilovna"},{"$f":"'Rozpis úklidu'!D11","v":1},{"$f":"'Rozpis úklidu'!L11","v":"Úklidová činnost č. 3"},{"$f":"'Rozpis úklidu'!P11*E12","v":0},1,{"$f":"IF(E12<B12,(B12-E12)*('Rozpis úklidu'!P11)*2,0)","v":0}]
[{"$f":"'Rozpis úklidu'!A12","v":"studovna"},{"$f":"'Rozpis úklidu'!D12","v":2},{"$f":"'Rozpis úklidu'!L12","v":"Úklidová činnost č. 3"},{"$f":"'Rozpis úklidu'!P12*E13","v":0},2,{"$f":"IF(E13<B13,(B13-E13)*('Rozpis úklidu'!P12)*2,0)","v":0}]
[{"$f":"'Rozpis úklidu'!A13","v":"sušárna +prádelna"},{"$f":"'Rozpis úklidu'!D13","v":1},{"$f":"'Rozpis úklidu'!L13","v":"Úklidová činnost č. 4"},{"$f":"'Rozpis úklidu'!P13*E14","v":0},1,{"$f":"IF(E14<B14,(B14-E14)*('Rozpis úklidu'!P13)*2,0)","v":0}]
[{"$f":"'Rozpis úklidu'!A14","v":"obyvák"},{"$f":"'Rozpis úklidu'!D14","v":2},{"$f":"'Rozpis úklidu'!L14","v":"Úklidová činnost č. 3"},{"$f":"'Rozpis úklidu'!P14*E15","v":0},2,{"$f":"IF(E15<B15,(B15-E15)*('Rozpis úklidu'!P14)*2,0)","v":0}]
[{"$f":"'Rozpis úklidu'!A15","v":"kanceláře+zázemí"},{"$f":"'Rozpis úklidu'!D15","v":1},{"$f":"'Rozpis úklidu'!L15","v":"Úklidová činnost č. 3"},{"$f":"'Rozpis úklidu'!P15*E16","v":0},1,{"$f":"IF(E16<B16,(B16-E16)*('Rozpis úklidu'!P15)*2,0)","v":0}]
[{"$f":"'Rozpis úklidu'!A16","v":"WC suterén"},{"$f":"'Rozpis úklidu'!D16","v":1},{"$f":"'Rozpis úklidu'!L16","v":"Úklidová činnost č. 14"},{"$f":"'Rozpis úklidu'!P16*E17","v":0},1,{"$f":"IF(E17<B17,(B17-E17)*('Rozpis úklidu'!P16)*2,0)","v":0}]
[{"$f":"'Rozpis úklidu'!A17","v":"HYGIENICKÉ ZÁZEMÍ 1.NP"},{"$f":"'Rozpis úklidu'!D17","v":1},{"$f":"'Rozpis úklidu'!L17","v":"Úklidová činnost č. 14 a 15"},{"$f":"'Rozpis úklidu'!P17*E18","v":0},1,{"$f":"IF(E18<B18,(B18-E18)*('Rozpis úklidu'!P17)*2,0)","v":0}]
[{"$f":"'Rozpis úklidu'!A18","v":"WC 2.NP-7. NP"},{"$f":"'Rozpis úklidu'!D18","v":6},{"$f":"'Rozpis úklidu'!L18","v":"Úklidová činnost č. 14"},{"$f":"'Rozpis úklidu'!P18*E19","v":0},6,{"$f":"IF(E19<B19,(B19-E19)*('Rozpis úklidu'!P18)*2,0)","v":0}]
[{"$f":"'Rozpis úklidu'!A19","v":"kuchyňky"},{"$f":"'Rozpis úklidu'!D19","v":1},{"$f":"'Rozpis úklidu'!L19","v":"Úklidová činnost č. 5"},{"$f":"'Rozpis úklidu'!P19*E20","v":0},1,{"$f":"IF(E20<B20,(B20-E20)*('Rozpis úklidu'!P19)*2,0)","v":0}]
[{"$f":"'Rozpis úklidu'!A51","v":"přebrání pokoje po ubytovaných"},0,{"$f":"'Rozpis úklidu'!L51","v":"Úklidová činnost č. 10"},{"$f":"'Rozpis úklidu'!P20*E21","v":0},0,{"$f":"IF(E21<B21,(B21-E21)*('Rozpis úklidu'!P20)*2,0)","v":0}]
["Úklidová pohotovost + Operativní úklidové práce dle požadavku vedoucí koleje",{"$f":"'Základní údaje'!B11","v":0},null,{"$f":"B22/60*E22","v":0},null,0]
[null,null,"K FAKTURACI CELKEM:",{"$f":"SUM(D5:D22)","v":0},null,{"$f":"SUM(F5:F22)","v":0}]
["Podpis vedoucí směny:",null,"Podpis zástupce vedení koleje:"]
[]
["Karta úklidu",null,{"$f":"'Rozpis úklidu'!$A$1","v":"kolej: Rooseveltova, VŠE"}]
["TÝDENNÍ ÚKLID                 TÝDEN:",{"$f":"WEEKNUM(TODAY(),1)","v":16},{"$f":"(NOW())","v":"2020-04-15T10:58:52.960"}]
[{"$f":"'Rozpis úklidu'!$A$3","v":"Úklidová jednotka"},{"$f":"'Rozpis úklidu'!$D$3","v":"počet\núklidových jednotek"},{"$f":"'Rozpis úklidu'!$L$3","v":"Popis činnosti"},{"$f":"'Rozpis úklidu'!$Q$3","v":"cena celkem za všechny úklidové jednotky \n(prac. dny)\n[Kč]"},"Správně\nuklizené\njednotky","Smluvní pokuta\n[Kč]","Poznámka"]
[{"$f":"'Rozpis úklidu'!A20","v":"výtah velký - týdení úklid"},{"$f":"'Rozpis úklidu'!D20","v":1},{"$f":"'Rozpis úklidu'!L20","v":"Úklidová činnost č. 11"},{"$f":"'Rozpis úklidu'!P20*E29","v":0},1,{"$f":"IF(E29<B29,(B29-E29)*('Rozpis úklidu'!P20)*2,0)","v":0}]
[{"$f":"'Rozpis úklidu'!A21","v":"výtah malý - týdenní úklid"},{"$f":"'Rozpis úklidu'!D21","v":2},{"$f":"'Rozpis úklidu'!L21","v":"Úklidová činnost č. 11"},{"$f":"'Rozpis úklidu'!P21*E30","v":0},2,{"$f":"IF(E30<B30,(B30-E30)*('Rozpis úklidu'!P21)*2,0)","v":0}]
[{"$f":"'Rozpis úklidu'!A22","v":"přilehlé zábradlí"},{"$f":"'Rozpis úklidu'!D22","v":21},{"$f":"'Rozpis úklidu'!L22","v":"otřít zabradlí a parapet a utřít prach, odstranit pavučiny"},{"$f":"'Rozpis úklidu'!P22*E31","v":0},21,{"$f":"IF(E31<B31,(B31-E31)*('Rozpis úklidu'!P22)*2,0)","v":0}]
[{"$f":"'Rozpis úklidu'!A23","v":"tělocvična"},{"$f":"'Rozpis úklidu'!D23","v":1},{"$f":"'Rozpis úklidu'!L23","v":"Úklidová činnost č. 3"},{"$f":"'Rozpis úklidu'!P23*E32","v":0},1,{"$f":"IF(E32<B32,(B32-E32)*('Rozpis úklidu'!P23)*2,0)","v":0}]
[{"$f":"'Rozpis úklidu'!A24","v":"místnost úklízeček a úklid.prost."},{"$f":"'Rozpis úklidu'!D24","v":1},{"$f":"'Rozpis úklidu'!L24","v":"Úklidová činnost č. 3"},{"$f":"'Rozpis úklidu'!P24*E33","v":0},1,{"$f":"IF(E33<B33,(B33-E33)*('Rozpis úklidu'!P24)*2,0)","v":0}]
[{"$f":"'Rozpis úklidu'!A25","v":"sklad lůžkovin"},{"$f":"'Rozpis úklidu'!D25","v":1},{"$f":"'Rozpis úklidu'!L25","v":"Úklidová činnost č. 3"},{"$f":"'Rozpis úklidu'!P25*E34","v":0},1,{"$f":"IF(E34<B34,(B34-E34)*('Rozpis úklidu'!P25)*2,0)","v":0}]
[{"$f":"'Rozpis úklidu'!A26","v":"uklízečky soc. zařízení "},{"$f":"'Rozpis úklidu'!D26","v":1},{"$f":"'Rozpis úklidu'!L26","v":"Úklidová činnost č. 14 a 15"},{"$f":"'Rozpis úklidu'!P26*E35","v":0},1,{"$f":"IF(E35<B35,(B35-E35)*('Rozpis úklidu'!P26)*2,0)","v":0}]
[{"$f":"'Rozpis úklidu'!A27","v":"balkon"},{"$f":"'Rozpis úklidu'!D27","v":18},{"$f":"'Rozpis úklidu'!L27","v":"Úklidová činnost č. 2"},{"$f":"'Rozpis úklidu'!P27*E36","v":0},18,{"$f":"IF(E36<B36,(B36-E36)*('Rozpis úklidu'!P27)*2,0)","v":0}]
[{"$f":"'Rozpis úklidu'!A28","v":"dvoulůžkový - buňka -  HOTEL"},0,{"$f":"'Rozpis úklidu'!L28","v":"Úklidová činnost č. 8"},{"$f":"IF(B37>0,'Rozpis úklidu'!P28*E37,0)","v":0},0,{"$f":"IF(E37<B37,(B37-E37)*('Rozpis úklidu'!P28)*2,0)","v":0}]
[{"$f":"'Rozpis úklidu'!A29","v":"třílůžkový - buňka -  HOTEL"},0,{"$f":"'Rozpis úklidu'!L29","v":"Úklidová činnost č. 8"},{"$f":"IF(B38>0,'Rozpis úklidu'!P29*E38,0)","v":0},0,{"$f":"IF(E38<B38,(B38-E38)*('Rozpis úklidu'!P29)*2,0)","v":0}]
[{"$f":"'Rozpis úklidu'!A30","v":"chodba - buňka -  HOTEL"},0,{"$f":"'Rozpis úklidu'!L30","v":"Úklidová činnost č. 8"},{"$f":"IF(B39>0,'Rozpis úklidu'!P30*E39,0)","v":0},0,{"$f":"IF(E39<B39,(B39-E39)*('Rozpis úklidu'!P30)*2,0)","v":0}]
[{"$f":"'Rozpis úklidu'!A31","v":"sprcha - buňka -  HOTEL"},0,{"$f":"'Rozpis úklidu'!L31","v":"Úklidová činnost č. 15"},{"$f":"IF(B40>0,'Rozpis úklidu'!P31*E40,0)","v":0},0,{"$f":"IF(E40<B40,(B40-E40)*('Rozpis úklidu'!P31)*2,0)","v":0}]
[{"$f":"'Rozpis úklidu'!A32","v":"WC - buňka -  HOTEL"},0,{"$f":"'Rozpis úklidu'!L32","v":"Úklidová činnost č. 14"},{"$f":"IF(B41>0,'Rozpis úklidu'!P32*E41,0)","v":0},0,{"$f":"IF(E41<B41,(B41-E41)*('Rozpis úklidu'!P32)*2,0)","v":0}]
[{"$f":"'Rozpis úklidu'!A33","v":"jednolůžkový samostatný -  HOTEL"},0,{"$f":"'Rozpis úklidu'!L33","v":"Úklidová činnost č. 9"},{"$f":"IF(B42>0,'Rozpis úklidu'!P33*E42,0)","v":0},0,{"$f":"IF(E42<B42,(B42-E42)*('Rozpis úklidu'!P33)*2,0)","v":0}]
[{"$f":"'Rozpis úklidu'!A34","v":"dvoulůžkový samostatný -  HOTEL"},0,{"$f":"'Rozpis úklidu'!L34","v":"Úklidová činnost č. 9"},{"$f":"IF(B43>0,'Rozpis úklidu'!P34*E43,0)","v":0},0,{"$f":"IF(E43<B43,(B43-E43)*('Rozpis úklidu'!P34)*2,0)","v":0}]
[{"$f":"'Rozpis úklidu'!A35","v":"trojlůžkový samostatný -  HOTEL"},0,{"$f":"'Rozpis úklidu'!L35","v":"Úklidová činnost č. 9"},{"$f":"IF(B44>0,'Rozpis úklidu'!P35*E44,0)","v":0},0,{"$f":"IF(E44<B44,(B44-E44)*('Rozpis úklidu'!P35)*2,0)","v":0}]
[{"$f":"'Rozpis úklidu'!A39","v":"agregát"},{"$f":"'Rozpis úklidu'!D39","v":1},{"$f":"'Rozpis úklidu'!L39","v":"Úklidová činnost č. 3"},{"$f":"'Rozpis úklidu'!P35*E45","v":0},1,{"$f":"IF(E45<B45,(B45-E45)*('Rozpis úklidu'!P35)*2,0)","v":0}]
[null,null,"K FAKTURACI CELKEM:",{"$f":"SUM(D29:D45)","v":0},null,{"$f":"SUM(F29:F45)","v":0}]
["Podpis vedoucí směny:",null,"Podpis zástupce vedení koleje:"]
[]
["Karta úklidu",null,{"$f":"'Rozpis úklidu'!$A$1","v":"kolej: Rooseveltova, VŠE"}]
["MĚSÍČNÍ ÚKLID                 MĚSÍC:",{"$f":"MONTH(C50)","v":4},{"$f":"NOW()","v":"2020-04-15T10:58:52.960"}]
[{"$f":"'Rozpis úklidu'!$A$3","v":"Úklidová jednotka"},{"$f":"'Rozpis úklidu'!$D$3","v":"počet\núklidových jednotek"},{"$f":"'Rozpis úklidu'!$L$3","v":"Popis činnosti"},{"$f":"'Rozpis úklidu'!$Q$3","v":"cena celkem za všechny úklidové jednotky \n(prac. dny)\n[Kč]"},"Správně\nuklizené\njednotky","Smluvní pokuta\n[Kč]","Poznámka"]
[{"$f":"CONCATENATE('Rozpis úklidu'!A36,\" / \",'Rozpis úklidu'!F36)","v":"klub / měsíčně"},{"$f":"'Rozpis úklidu'!D36","v":1},{"$f":"'Rozpis úklidu'!L36","v":"Úklidová činnost č. 3"},{"$f":"'Rozpis úklidu'!P36*E52","v":0},1,{"$f":"IF(E52<B52,(B52-E52)*('Rozpis úklidu'!P36)*2,0)","v":0}]
[{"$f":"CONCATENATE('Rozpis úklidu'!A37,\" / \",'Rozpis úklidu'!F37,\" (\",'Rozpis úklidu'!D37,\")\")","v":"sklad- čistící prostředky / čtvrtletně (1)"},0,{"$f":"'Rozpis úklidu'!L37","v":"Úklidová činnost č. 3"},{"$f":"IF(B53>0,'Rozpis úklidu'!P37*E53,0)","v":0},0,{"$f":"IF(E53<B53,(B53-E53)*'Rozpis úklidu'!P37*2,0)","v":0}]
[{"$f":"CONCATENATE('Rozpis úklidu'!A38,\" / \",'Rozpis úklidu'!F38,\" (\",'Rozpis úklidu'!D38,\")\")","v":"06 výměník / čtvrtletně (1)"},0,{"$f":"'Rozpis úklidu'!L38","v":"Úklidová činnost č. 3"},{"$f":"IF(B54>0,'Rozpis úklidu'!P38*E54,0)","v":0},0,{"$f":"IF(E54<B54,(B54-E54)*'Rozpis úklidu'!P38*2,0)","v":0}]
[{"$f":"CONCATENATE('Rozpis úklidu'!A39,\" / \",'Rozpis úklidu'!F39,\" (\",'Rozpis úklidu'!D39,\")\")","v":"agregát / čtvrtletně (1)"},0,{"$f":"'Rozpis úklidu'!L39","v":"Úklidová činnost č. 3"},{"$f":"IF(B55>0,'Rozpis úklidu'!P39*E55,0)","v":0},0,{"$f":"IF(E55<B55,(B55-E55)*'Rozpis úklidu'!P39*2,0)","v":0}]
[{"$f":"CONCATENATE('Rozpis úklidu'!A40,\" / \",'Rozpis úklidu'!F40,\" (\",'Rozpis úklidu'!D40,\")\")","v":"údržba / čtvrtletně (1)"},0,{"$f":"'Rozpis úklidu'!L40","v":"Úklidová činnost č. 3"},{"$f":"IF(B56>0,'Rozpis úklidu'!P40*E56,0)","v":0},0,{"$f":"IF(E56<B56,(B56-E56)*'Rozpis úklidu'!P40*2,0)","v":0}]
[{"$f":"CONCATENATE('Rozpis úklidu'!A41,\" / \",'Rozpis úklidu'!F41,\" (\",'Rozpis úklidu'!D41,\")\")","v":"jednolůžkový - buňka / čtvrtletně (7)"},0,{"$f":"'Rozpis úklidu'!L41","v":"Úklidová činnost č. 6"},{"$f":"IF(B57>0,'Rozpis úklidu'!P41*E57,0)","v":0},0,{"$f":"IF(E57<B57,(B57-E57)*'Rozpis úklidu'!P41*2,0)","v":0}]
[{"$f":"CONCATENATE('Rozpis úklidu'!A42,\" / \",'Rozpis úklidu'!F42,\" (\",'Rozpis úklidu'!D42,\")\")","v":"dvoulůžkový - buňka / čtvrtletně (56)"},0,{"$f":"'Rozpis úklidu'!L42","v":"Úklidová činnost č. 6"},{"$f":"IF(B58>0,'Rozpis úklidu'!P42*E58,0)","v":0},0,{"$f":"IF(E58<B58,(B58-E58)*'Rozpis úklidu'!P42*2,0)","v":0}]
[{"$f":"CONCATENATE('Rozpis úklidu'!A43,\" / \",'Rozpis úklidu'!F43,\" (\",'Rozpis úklidu'!D43,\")\")","v":"třílůžkový - buňka / čtvrtletně (38)"},0,{"$f":"'Rozpis úklidu'!L43","v":"Úklidová činnost č. 6"},{"$f":"IF(B59>0,'Rozpis úklidu'!P43*E59,0)","v":0},0,{"$f":"IF(E59<B59,(B59-E59)*'Rozpis úklidu'!P43*2,0)","v":0}]
[{"$f":"CONCATENATE('Rozpis úklidu'!A44,\" / \",'Rozpis úklidu'!F44,\" (\",'Rozpis úklidu'!D44,\")\")","v":"chodba - buňka / čtvrtletně (54)"},0,{"$f":"'Rozpis úklidu'!L44","v":"Úklidová činnost č. 6"},{"$f":"IF(B60>0,'Rozpis úklidu'!P44*E60,0)","v":0},0,{"$f":"IF(E60<B60,(B60-E60)*'Rozpis úklidu'!P44*2,0)","v":0}]
[{"$f":"CONCATENATE('Rozpis úklidu'!A45,\" / \",'Rozpis úklidu'!F45,\" (\",'Rozpis úklidu'!D45,\")\")","v":"sprcha - buňka / čtvrtletně (54)"},0,{"$f":"'Rozpis úklidu'!L45","v":"Úklidová činnost č. 15"},{"$f":"IF(B61>0,'Rozpis úklidu'!P45*E61,0)","v":0},0,{"$f":"IF(E61<B61,(B61-E61)*'Rozpis úklidu'!P45*2,0)","v":0}]
[{"$f":"CONCATENATE('Rozpis úklidu'!A46,\" / \",'Rozpis úklidu'!F46,\" (\",'Rozpis úklidu'!D46,\")\")","v":"WC - buňka / čtvrtletně (54)"},0,{"$f":"'Rozpis úklidu'!L46","v":"Úklidová činnost č. 14"},{"$f":"IF(B62>0,'Rozpis úklidu'!P46*E62,0)","v":0},0,{"$f":"IF(E62<B62,(B62-E62)*'Rozpis úklidu'!P46*2,0)","v":0}]
[{"$f":"CONCATENATE('Rozpis úklidu'!A47,\" / \",'Rozpis úklidu'!F47,\" (\",'Rozpis úklidu'!D47,\")\")","v":"Okna (různé velikosti) / ročně (323)"},0,{"$f":"'Rozpis úklidu'!L47","v":"Úklidová činnost č. 12"},{"$f":"IF(B63>0,'Rozpis úklidu'!P47*E63,0)","v":0},0,{"$f":"IF(E63<B63,(B63-E63)*'Rozpis úklidu'!P47*2,0)","v":0}]
[null,null,"K FAKTURACI CELKEM:",{"$f":"SUM(D52:D63)","v":0},null,{"$f":"SUM(F52:F63)","v":0}]
["Podpis vedoucí směny:",null,"Podpis zástupce vedení koleje:"]
[]
["Karta úklidu",null,{"$f":"'Rozpis úklidu'!$A$1","v":"kolej: Rooseveltova, VŠE"}]
["SEZONNÍ ÚKLID                 MĚSÍC:",{"$f":"MONTH(C68)","v":4},{"$f":"(NOW())","v":"2020-04-15T10:58:52.960"}]
[{"$f":"'Rozpis úklidu'!$A$3","v":"Úklidová jednotka"},{"$f":"'Rozpis úklidu'!$D$3","v":"počet\núklidových jednotek"},{"$f":"'Rozpis úklidu'!$L$3","v":"Popis činnosti"},{"$f":"'Rozpis úklidu'!$Q$3","v":"cena celkem za všechny úklidové jednotky \n(prac. dny)\n[Kč]"},"Správně\nuklizené\njednotky","Smluvní pokuta\n[Kč]","Poznámka"]
[{"$f":"CONCATENATE('Rozpis úklidu'!A48,\" / \",'Rozpis úklidu'!F48,\" (\",'Rozpis úklidu'!D48,\")\")","v":"jednolůžkový samostatný / sezonně (12)"},0,{"$f":"'Rozpis úklidu'!L48","v":"Úklidová činnopst č. 6"},{"$f":"IF(B70>0,'Rozpis úklidu'!P48*E70,0)","v":0},0,{"$f":"IF(E70<B70,(B70-E70)*'Rozpis úklidu'!P48*2,0)","v":0}]
[{"$f":"CONCATENATE('Rozpis úklidu'!A49,\" / \",'Rozpis úklidu'!F49,\" (\",'Rozpis úklidu'!D49,\")\")","v":"dvoulůžkový samostatný / sezonně (55)"},0,{"$f":"'Rozpis úklidu'!L49","v":"Úklidová činnopst č. 6"},{"$f":"IF(B71>0,'Rozpis úklidu'!P49*E71,0)","v":0},0,{"$f":"IF(E71<B71,(B71-E71)*'Rozpis úklidu'!P49*2,0)","v":0}]
[{"$f":"CONCATENATE('Rozpis úklidu'!A50,\" / \",'Rozpis úklidu'!F50,\" (\",'Rozpis úklidu'!D50,\")\")","v":"trojlůžkový samostatný / sezonně (6)"},0,{"$f":"'Rozpis úklidu'!L50","v":"Úklidová činnopst č. 6"},{"$f":"IF(B72>0,'Rozpis úklidu'!P50*E72,0)","v":0},0,{"$f":"IF(E72<B72,(B72-E72)*'Rozpis úklidu'!P50*2,0)","v":0}]
[{"$f":"CONCATENATE('Rozpis úklidu'!A51,\" / \",'Rozpis úklidu'!F51,\" (\",'Rozpis úklidu'!D51,\")\")","v":"přebrání pokoje po ubytovaných / sezonně (73)"},0,{"$f":"'Rozpis úklidu'!L51","v":"Úklidová činnost č. 10"},{"$f":"IF(B73>0,'Rozpis úklidu'!P51*E73,0)","v":0},0,{"$f":"IF(E73<B73,(B73-E73)*'Rozpis úklidu'!P51*2,0)","v":0}]
[{"$f":"CONCATENATE('Rozpis úklidu'!A52,\" / \",'Rozpis úklidu'!F52,\" (\",'Rozpis úklidu'!D52,\")\")","v":"jednolůžkový samostatný / sezonně (12)"},0,{"$f":"'Rozpis úklidu'!L52","v":"Úklidová činnost č. 6"},{"$f":"IF(B74>0,'Rozpis úklidu'!P52*E74,0)","v":0},0,{"$f":"IF(E74<B74,(B74-E74)*'Rozpis úklidu'!P52*2,0)","v":0}]
[{"$f":"CONCATENATE('Rozpis úklidu'!A53,\" / \",'Rozpis úklidu'!F53,\" (\",'Rozpis úklidu'!D53,\")\")","v":"dvoulůžkový samostatný / sezonně (55)"},0,{"$f":"'Rozpis úklidu'!L53","v":"Úklidová činnost č. 6"},{"$f":"IF(B75>0,'Rozpis úklidu'!P53*E75,0)","v":0},0,{"$f":"IF(E75<B75,(B75-E75)*'Rozpis úklidu'!P53*2,0)","v":0}]
[{"$f":"CONCATENATE('Rozpis úklidu'!A54,\" / \",'Rozpis úklidu'!F54,\" (\",'Rozpis úklidu'!D54,\")\")","v":"trojlůžkový samostatný / sezonně (6)"},0,{"$f":"'Rozpis úklidu'!L54","v":"Úklidová činnost č. 6"},{"$f":"IF(B76>0,'Rozpis úklidu'!P54*E76,0)","v":0},0,{"$f":"IF(E76<B76,(B76-E76)*'Rozpis úklidu'!P54*2,0)","v":0}]
[{"$f":"CONCATENATE('Rozpis úklidu'!A55,\" / \",'Rozpis úklidu'!F55,\" (\",'Rozpis úklidu'!D55,\")\")","v":"terasa / sezonně (1)"},0,{"$f":"'Rozpis úklidu'!L55","v":"zamést podlahu, vynést odpadky, umýt dveře včetně zárubní, otřít a urovnat nábytek"},{"$f":"IF(B77>0,'Rozpis úklidu'!P55*E77,0)","v":0},0,{"$f":"IF(E77<B77,(B77-E77)*'Rozpis úklidu'!P55*2,0)","v":0}]
[{"$f":"CONCATENATE('Rozpis úklidu'!A56,\" / \",'Rozpis úklidu'!F56,\" (\",'Rozpis úklidu'!D56,\")\")","v":"jednolůžkový - buňka -  HOTEL / sezonně (4)"},0,{"$f":"'Rozpis úklidu'!L56","v":"Úklidová činnost č. 8"},{"$f":"IF(B78>0,'Rozpis úklidu'!P56*E78,0)","v":0},0,{"$f":"IF(E78<B78,(B78-E78)*'Rozpis úklidu'!P56*2,0)","v":0}]
[{"$f":"CONCATENATE('Rozpis úklidu'!A57,\" / \",'Rozpis úklidu'!F57,\" (\",'Rozpis úklidu'!D57,\")\")","v":"dvoulůžkový - buňka -  HOTEL / sezonně (27)"},0,{"$f":"'Rozpis úklidu'!L57","v":"Úklidová činnost č. 8"},{"$f":"IF(B79>0,'Rozpis úklidu'!P57*E79,0)","v":0},0,{"$f":"IF(E79<B79,(B79-E79)*'Rozpis úklidu'!P57*2,0)","v":0}]
[{"$f":"CONCATENATE('Rozpis úklidu'!A58,\" / \",'Rozpis úklidu'!F58,\" (\",'Rozpis úklidu'!D58,\")\")","v":"třílůžkový - buňka -  HOTEL / sezonně (21)"},0,{"$f":"'Rozpis úklidu'!L58","v":"Úklidová činnost č. 8"},{"$f":"IF(B80>0,'Rozpis úklidu'!P58*E80,0)","v":0},0,{"$f":"IF(E80<B80,(B80-E80)*'Rozpis úklidu'!P58*2,0)","v":0}]
[{"$f":"CONCATENATE('Rozpis úklidu'!A59,\" / \",'Rozpis úklidu'!F59,\" (\",'Rozpis úklidu'!D59,\")\")","v":"chodba - buňka -  HOTEL / sezonně (9)"},0,{"$f":"'Rozpis úklidu'!L59","v":"Úklidová činnost č. 8"},{"$f":"IF(B81>0,'Rozpis úklidu'!P59*E81,0)","v":0},0,{"$f":"IF(E81<B81,(B81-E81)*'Rozpis úklidu'!P59*2,0)","v":0}]
[{"$f":"CONCATENATE('Rozpis úklidu'!A60,\" / \",'Rozpis úklidu'!F60,\" (\",'Rozpis úklidu'!D60,\")\")","v":"sprcha - buňka -  HOTEL / sezonně (9)"},0,{"$f":"'Rozpis úklidu'!L60","v":"Úklidová činnost č. 15"},{"$f":"IF(B82>0,'Rozpis úklidu'!P60*E82,0)","v":0},0,{"$f":"IF(E82<B82,(B82-E82)*'Rozpis úklidu'!P60*2,0)","v":0}]
[{"$f":"CONCATENATE('Rozpis úklidu'!A61,\" / \",'Rozpis úklidu'!F61,\" (\",'Rozpis úklidu'!D61,\")\")","v":"wc - buňka -  HOTEL / sezonně (9)"},0,{"$f":"'Rozpis úklidu'!L61","v":"Úklidová činnost č. 14"},{"$f":"IF(B83>0,'Rozpis úklidu'!P61*E83,0)","v":0},0,{"$f":"IF(E83<B83,(B83-E83)*'Rozpis úklidu'!P61*2,0)","v":0}]
[{"$f":"CONCATENATE('Rozpis úklidu'!A62,\" / \",'Rozpis úklidu'!F62,\" (\",'Rozpis úklidu'!D62,\")\")","v":"jednolůžkový samostatný -  HOTEL / sezonně (3)"},0,{"$f":"'Rozpis úklidu'!L62","v":"Úklidová činnost č. 9"},{"$f":"IF(B84>0,'Rozpis úklidu'!P62*E84,0)","v":0},0,{"$f":"IF(E84<B84,(B84-E84)*'Rozpis úklidu'!P62*2,0)","v":0}]
[{"$f":"CONCATENATE('Rozpis úklidu'!A63,\" / \",'Rozpis úklidu'!F63,\" (\",'Rozpis úklidu'!D63,\")\")","v":"dvoulůžkový samostatný -  HOTEL / sezonně (27)"},0,{"$f":"'Rozpis úklidu'!L63","v":"Úklidová činnost č. 9"},{"$f":"IF(B85>0,'Rozpis úklidu'!P63*E85,0)","v":0},0,{"$f":"IF(E85<B85,(B85-E85)*'Rozpis úklidu'!P63*2,0)","v":0}]
[{"$f":"CONCATENATE('Rozpis úklidu'!A64,\" / \",'Rozpis úklidu'!F64,\" (\",'Rozpis úklidu'!D64,\")\")","v":"trojlůžkový samostatný -  HOTEL / sezonně (3)"},0,{"$f":"'Rozpis úklidu'!L64","v":"Úklidová činnost č. 9"},{"$f":"IF(B86>0,'Rozpis úklidu'!P64*E86,0)","v":0},0,{"$f":"IF(E86<B86,(B86-E86)*'Rozpis úklidu'!P64*2,0)","v":0}]
[null,null,"K FAKTURACI CELKEM:",{"$f":"SUM(D70:D86)","v":0},null,{"$f":"SUM(F70:F86)","v":0}]
["Podpis vedoucí směny:",null,"Podpis zástupce vedení koleje:"]
[]
["Karta úklidu",null,{"$f":"'Rozpis úklidu'!$A$1","v":"kolej: Rooseveltova, VŠE"}]
["ÚKLID O VÍKENDU                 DNE:",{"$f":"(NOW())","v":"2020-04-15T10:58:52.960"}]
[{"$f":"'Rozpis úklidu'!$A$3","v":"Úklidová jednotka"},{"$f":"'Rozpis úklidu'!$D$3","v":"počet\núklidových jednotek"},{"$f":"'Rozpis úklidu'!$L$3","v":"Popis činnosti"},"cena celkem za všechny úklidové jednotky \n(VÍKEND)\n[Kč]","Správně\nuklizené\njednotky","Smluvní pokuta\n[Kč]","Poznámka"]
[{"$f":"'Rozpis úklidu'!A28","v":"dvoulůžkový - buňka -  HOTEL"},0,{"$f":"'Rozpis úklidu'!L28","v":"Úklidová činnost č. 8"},{"$f":"IF(B93>0,'Rozpis úklidu'!P28*E93*'Základní údaje'!$C$11,0)","v":0},0,{"$f":"IF(E93<B93,(B93-E93)*'Rozpis úklidu'!P28*2*'Základní údaje'!$C$11,0)","v":0}]
[{"$f":"'Rozpis úklidu'!A29","v":"třílůžkový - buňka -  HOTEL"},0,{"$f":"'Rozpis úklidu'!L29","v":"Úklidová činnost č. 8"},{"$f":"IF(B94>0,'Rozpis úklidu'!P29*E94*'Základní údaje'!$C$11,0)","v":0},0,{"$f":"IF(E94<B94,(B94-E94)*'Rozpis úklidu'!P29*2*'Základní údaje'!$C$11,0)","v":0}]
[{"$f":"'Rozpis úklidu'!A30","v":"chodba - buňka -  HOTEL"},0,{"$f":"'Rozpis úklidu'!L30","v":"Úklidová činnost č. 8"},{"$f":"IF(B95>0,'Rozpis úklidu'!P30*E95*'Základní údaje'!$C$11,0)","v":0},0,{"$f":"IF(E95<B95,(B95-E95)*'Rozpis úklidu'!P30*2*'Základní údaje'!$C$11,0)","v":0}]
[{"$f":"'Rozpis úklidu'!A31","v":"sprcha - buňka -  HOTEL"},0,{"$f":"'Rozpis úklidu'!L31","v":"Úklidová činnost č. 15"},{"$f":"IF(B96>0,'Rozpis úklidu'!P31*E96*'Základní údaje'!$C$11,0)","v":0},0,{"$f":"IF(E96<B96,(B96-E96)*'Rozpis úklidu'!P31*2*'Základní údaje'!$C$11,0)","v":0}]
[{"$f":"'Rozpis úklidu'!A32","v":"WC - buňka -  HOTEL"},0,{"$f":"'Rozpis úklidu'!L32","v":"Úklidová činnost č. 14"},{"$f":"IF(B97>0,'Rozpis úklidu'!P32*E97*'Základní údaje'!$C$11,0)","v":0},0,{"$f":"IF(E97<B97,(B97-E97)*'Rozpis úklidu'!P32*2*'Základní údaje'!$C$11,0)","v":0}]
[{"$f":"'Rozpis úklidu'!A33","v":"jednolůžkový samostatný -  HOTEL"},0,{"$f":"'Rozpis úklidu'!L33","v":"Úklidová činnost č. 9"},{"$f":"IF(B98>0,'Rozpis úklidu'!P33*E98*'Základní údaje'!$C$11,0)","v":0},0,{"$f":"IF(E98<B98,(B98-E98)*'Rozpis úklidu'!P33*2*'Základní údaje'!$C$11,0)","v":0}]
[{"$f":"'Rozpis úklidu'!A34","v":"dvoulůžkový samostatný -  HOTEL"},0,{"$f":"'Rozpis úklidu'!L34","v":"Úklidová činnost č. 9"},{"$f":"IF(B99>0,'Rozpis úklidu'!P34*E99*'Základní údaje'!$C$11,0)","v":0},0,{"$f":"IF(E99<B99,(B99-E99)*'Rozpis úklidu'!P34*2*'Základní údaje'!$C$11,0)","v":0}]
[{"$f":"'Rozpis úklidu'!A35","v":"trojlůžkový samostatný -  HOTEL"},0,{"$f":"'Rozpis úklidu'!L35","v":"Úklidová činnost č. 9"},{"$f":"IF(B100>0,'Rozpis úklidu'!P35*E100*'Základní údaje'!$C$11,0)","v":0},0,{"$f":"IF(E100<B100,(B100-E100)*'Rozpis úklidu'!P35*2*'Základní údaje'!$C$11,0)","v":0}]
[{"$f":"'Rozpis úklidu'!A56","v":"jednolůžkový - buňka -  HOTEL"},0,{"$f":"'Rozpis úklidu'!L56","v":"Úklidová činnost č. 8"},{"$f":"IF(B101>0,'Rozpis úklidu'!P56*E101*'Základní údaje'!$C$11,0)","v":0},0,{"$f":"IF(E101<B101,(B101-E101)*'Rozpis úklidu'!P36*2*'Základní údaje'!$C$11,0)","v":0}]
[{"$f":"'Rozpis úklidu'!A57","v":"dvoulůžkový - buňka -  HOTEL"},0,{"$f":"'Rozpis úklidu'!L57","v":"Úklidová činnost č. 8"},{"$f":"IF(B102>0,'Rozpis úklidu'!P57*E102*'Základní údaje'!$C$11,0)","v":0},0,{"$f":"IF(E102<B102,(B102-E102)*'Rozpis úklidu'!P37*2*'Základní údaje'!$C$11,0)","v":0}]
[{"$f":"'Rozpis úklidu'!A58","v":"třílůžkový - buňka -  HOTEL"},0,{"$f":"'Rozpis úklidu'!L58","v":"Úklidová činnost č. 8"},{"$f":"IF(B103>0,'Rozpis úklidu'!P58*E103*'Základní údaje'!$C$11,0)","v":0},0,{"$f":"IF(E103<B103,(B103-E103)*'Rozpis úklidu'!P38*2*'Základní údaje'!$C$11,0)","v":0}]
[{"$f":"'Rozpis úklidu'!A59","v":"chodba - buňka -  HOTEL"},0,{"$f":"'Rozpis úklidu'!L59","v":"Úklidová činnost č. 8"},{"$f":"IF(B104>0,'Rozpis úklidu'!P59*E104*'Základní údaje'!$C$11,0)","v":0},0,{"$f":"IF(E104<B104,(B104-E104)*'Rozpis úklidu'!P39*2*'Základní údaje'!$C$11,0)","v":0}]
[{"$f":"'Rozpis úklidu'!A60","v":"sprcha - buňka -  HOTEL"},0,{"$f":"'Rozpis úklidu'!L60","v":"Úklidová činnost č. 15"},{"$f":"IF(B105>0,'Rozpis úklidu'!P60*E105*'Základní údaje'!$C$11,0)","v":0},0,{"$f":"IF(E105<B105,(B105-E105)*'Rozpis úklidu'!P40*2*'Základní údaje'!$C$11,0)","v":0}]
[{"$f":"'Rozpis úklidu'!A61","v":"wc - buňka -  HOTEL"},0,{"$f":"'Rozpis úklidu'!L61","v":"Úklidová činnost č. 14"},{"$f":"IF(B106>0,'Rozpis úklidu'!P61*E106*'Základní údaje'!$C$11,0)","v":0},0,{"$f":"IF(E106<B106,(B106-E106)*'Rozpis úklidu'!P41*2*'Základní údaje'!$C$11,0)","v":0}]
[{"$f":"'Rozpis úklidu'!A62","v":"jednolůžkový samostatný -  HOTEL"},0,{"$f":"'Rozpis úklidu'!L62","v":"Úklidová činnost č. 9"},{"$f":"IF(B107>0,'Rozpis úklidu'!P62*E107*'Základní údaje'!$C$11,0)","v":0},0,{"$f":"IF(E107<B107,(B107-E107)*'Rozpis úklidu'!P42*2*'Základní údaje'!$C$11,0)","v":0}]
[{"$f":"'Rozpis úklidu'!A63","v":"dvoulůžkový samostatný -  HOTEL"},0,{"$f":"'Rozpis úklidu'!L63","v":"Úklidová činnost č. 9"},{"$f":"IF(B108>0,'Rozpis úklidu'!P63*E108*'Základní údaje'!$C$11,0)","v":0},0,{"$f":"IF(E108<B108,(B108-E108)*'Rozpis úklidu'!P43*2*'Základní údaje'!$C$11,0)","v":0}]
[{"$f":"'Rozpis úklidu'!A64","v":"trojlůžkový samostatný -  HOTEL"},0,{"$f":"'Rozpis úklidu'!L64","v":"Úklidová činnost č. 9"},{"$f":"IF(B109>0,'Rozpis úklidu'!P64*E109*'Základní údaje'!$C$11,0)","v":0},0,{"$f":"IF(E109<B109,(B109-E109)*'Rozpis úklidu'!P44*2*'Základní údaje'!$C$11,0)","v":0}]
[{"$f":"'Rozpis úklidu'!A51","v":"přebrání pokoje po ubytovaných"},0,{"$f":"'Rozpis úklidu'!L51","v":"Úklidová činnost č. 10"},{"$f":"'Rozpis úklidu'!P51*E110*'Základní údaje'!$C$11","v":0},0,{"$f":"IF(E110<B110,(B110-E110)*('Rozpis úklidu'!P51)*2*'Základní údaje'!$C$11,0)","v":0}]
[null,null,"K FAKTURACI CELKEM:",{"$f":"SUM(D93:D110)","v":0},null,{"$f":"SUM(F93:F110)","v":0}]
["Podpis vedoucí směny:",null,"Podpis zástupce vedení koleje:"]

{"sheet":"Činnosti úklidu","index":3,"n_rows":35,"n_cols":2,"rows_kept":35,"cut":false,"hidden":false,"merged":[]}
[null,"Úklidová činnost"]
[null,"Úklidová činnost probíhá v čase od 07:00 hod. do 15.00 hod. v jednosměnném provozu v pětidenním pracovním týdnu, úklid hotelových pokojů musí být dle potřeby zajištěn i o víkendu. V době nastěhování a vystěhování studentů koncem letního semestru a začátkem zimního semestru stanovuje dobu pro úklid podle aktuálních potřeb vedoucí/zástupce vedoucí koleje a to včetně úklidu o víkendu. Při úklidu je potřeba používat úklidové, čistící a desinfekční prostředky vhodné pro daný předmět úklidu a dodržovat návody na použití příslušných úklidových, čistících a desinfekčních prostředků a bezpečnostní a hygienická pravidla"]
["Definice pojmů:"]
["Zametání","pomocí vhodného smetáku zamést dané podlahové plochy."]
["Vytírání ","pomocí mopu za použití vody a odpovídajícího saponátu vytřít dané podlahové plochy."]
["Mytí ","pomocí hadru, utěrky nebo houbičky, za použití vody a odpovídajícího saponátu, umýt plochy nábytku, dveří, spotřebičů, keramických a jiných obkladů, topení apod."]
["Čištění ","důkladné čištění, zvláště skvrn, za pomocí odpovídajících čisticích prostředků, ploch nábytku, dveří, spotřebičů, keramických a jiných obkladů, topení apod."]
["Desinfekce ","po umytí nebo vyčištění daných ploch, podlah, spotřebičů aj. použít podle návodu odpovídající desinfekční prostředek."]
["Leštění ","leštění všech skleněných a zrcadlových ploch za použití odpovídajícího přípravku na mytí a leštění skel."]
["Luxování ","čištění podlah za použití vysavače."]
["Strojové čištění ","se provádí za použití čistícího stroje na vodní nebo parní bázi (strojové čištění postelí, matrací, koberců apod.)."]
["Stírání prachu","setření prachu vhodnou utěrkou za použití odpovídajícího přípravku na odstranění prachu, odstranění pavučin."]
["Úklid odpadů ","řádné uvolnění, umytí, vyčištění a vydesinfikování odpadů na soc. zařízeních, WC, umývárnách a sprchových koutech za použití odpovídajících přípravků."]
["Mimořádný úklid ","úklid znečištěného WC (mimo mísu), umývárny nebo společných prostor zvratky nebo exkrementy (uklízečka vyrozumí vedoucí/zástupce vedoucí koleje)."]
["Mytí oken ","umytí parapetů na mokro za použití odpovídajícího saponátu, umytí rámů oken na mokro za použití odpovídajícího saponátu, umytí a vyleštění oken odpovídajícím přípravkem na mytí a leštění oken."]
["Zalévání květin ","zalití květin čistou odstátou vodou v přiměřeném množství s ohledem na druh rostliny. Podle potřeby použít odpovídající hnojivo v dávkování podle návodu k použití."]
["Vynášení a likvidace odpadu","vynesení odpadu ze všech odpadních nádob (i z prostoru okolo těchto nádob), a ze skartovaček, umytí odpadních nádob a doplnění pytlů na odpadky do odpadních nádob. Odpad dle možnosti vhodným způsobem třídit."]
["Doplňování hotelových potřeb ","v hotelovém provozu doplnit toaletní papír do zásobníků doplnit ručníky a hotelové mýdlo."]
[]
["Číslo typové činnosti","Popis typových pracovních činností:"]
["1.","Úklidem společných prostor, podlah chodeb, schodišť a vestibulu se rozumí:\nzamést a vytřít podlahy, odstranit našlapané žvýkačky a jiné nečistoty, vyluxovat podlahy kryté kobercem. Umýt parapety, zábradlí a hasicí přístroje umístěné na chodbách, vyleštit skleněné plochy na chodbách a ve vestibulech, setřít prach a pavučiny. Sepsat a nahlásit vedení koleje všechny závady a škody."]
["2.","Úklidem balkonů se rozumí: \nzamést a vytřít podlahy, odstranit našlapané žvýkačky a jiné nečistoty, umýt parapety a zábradlí. Odstranit pavučiny. Vynést odpady a popř. i vysypat popelníky."]
["3.","Úklidem společenských, (studoven, kluboven apod.) zájmových (posiloven, tělocvičen apod.) a zasedacích místností, kanceláří, skladů a šaten se rozumí:\nzamést a vytřít podlahy, podlahy pokryté kobercem vyluxovat, setřít prach a pavučiny ze všech dosažitelných a volně přístupných míst a zařízení místností (topení, cvičební nářadí apod.), umýt a vyčistit skvrny kolem klik, dveří, vypínačů a světel. Srovnat nábytek a jiné vybavení místností. Srovnat nebo dověsit záclony a závěsy. Vyleštit zrcadla. Vynést odpad. Sepsat a nahlásit vedení koleje všechny závady a škody."]
["4.","Úklidem prádelen se rozumí:\nzamést a vytřít podlahy, setřít prach a pavučiny ze všech dosažitelných a volně přístupných míst a zařízení místností (praček, topení, apod.). Vyčistit filtry praček, vyčistit zásobníky na prášek. Umýt a vyčistit dveře, kliky, vypínače a světla. Srovnat nebo dověsit záclony a závěsy. Vyleštit zrcadla. Vynést odpad. Sepsat a nahlásit vedení koleje všechny závady a škody."]
["5.","Úklidem kuchyněk se rozumí:\numýt, vyčistit a vydesinfikovat sporák, vařič, mikrovlnnou troubu, digestoř, pracovní desky a zařízení místnosti kuchyňky. Umýt, vyčistit a vydesinfikovat obklady. Pokud je kuchyňka vybavena nádobím umýt nádobí. Odmrazit a vyčistit lednici. Odstranit všechny prošlé nebo kazící se potraviny. Zamést a vytřít podlahy. Vynést odpad. Setřít prach a pavučiny. Sepsat a nahlásit vedení koleje všechny závady a škody."]
["6.","Generálním úklidem pokojů po odchodu studentů se rozumí:\numýt nábytek z venku (postele, stoly, židle, police, skříně apod.) i zevnitř (skříně, šuplíky, peřináče, postele apod.) a vyčistit od skvrn. Vyleštit zrcadla a okna. Vyluxovat/strojově vyčistit matrace postelí. Setřít prach a pavučiny (včetně žaluzií). Umýt a vyčistit veškeré obložení, lišty, obrazy, dveře, kliky, rámy oken, parapety, vypínače, zásuvky, topení, světla, lampičky apod. Umýt ledničku zevnitř i zvenku. Zamést a vytřít podlahy, podlahy kryté kobercem vyluxovat, a to i pod a za postelí, křesly a závěsy. Srovnat nebo dověsit záclony a závěsy, srovnat nábytek a jiné vybavení pokoje. Vynést odpad, umýt, otřít a vyleštit odpadkový koš. Zlikvidovat případné komáry a mouchy. Vyvětrat a popř. i navonět. Sepsat a nahlásit vedení koleje všechny závady a škody. Případné nalezené věci po ubytovaných předat vedení koleje."]
["7.","Úklidem předsíní buněk se rozumí:\núklid sociálního zařízení podle bodu 14. a 15. úklid kuchyňky podle bodu 5. Zamést a vytřít podlahy. Umýt a vyčistit pracovní plochy a nábytek. Setřít prach a pavučiny. Vynést odpad. Sepsat a nahlásit vedení koleje všechny závady a škody."]
["8.","Úklidem hotelových pokojů po vystěhování se rozumí:\numýt nábytek z venku (postele, stoly, židle, police, skříně apod.) i zevnitř (skříně, šuplíky, peřináče, postele apod.) a vyčistit od skvrn. Vyleštit zrcadla a okna. Převléct a ustlat postele, vyluxovat/strojově vyčistit matrace postelí. Setřít prach a pavučiny (včetně žaluzií). Umýt a vyčistit veškeré obložení, lišty, obrazy, dveře, kliky, rámy oken, parapety, vypínače, zásuvky, televizi, topení, světla, lampičky apod. Umýt nádobí. Umýt ledničku zevnitř i zvenku. Zamést a vytřít podlahy, podlahy kryté kobercem vyluxovat, a to i pod a za postelí, křesly a závěsy. Srovnat nebo dověsit záclony a závěsy, srovnat nábytek a jiné vybavení pokoje. Vynést odpad, umýt, otřít a vyleštit odpadkový koš. Zlikvidovat případné komáry a mouchy. Doplnit hotelové potřeby. Vyvětrat a popř. i navonět. Předat složené použité prádlo a ručníky skladní. Sepsat a nahlásit vedení koleje všechny závady a škody. Případné nalezené věci po hostech předat vedení koleje."]
["9.","Úklidem hotelových pokojů v průběhu ubytování se rozumí:\nustlání postelí, popř. výměna ložního prádla každý 4. den pobytu, výměna osušek a ručníků, doplnění toaletního papíru, vynesení odpadků, umytí koupelny (sprchový kout, WC, umyvadlo), vytření podlahy."]
["10.","Přebráním uklizeného pokoje po studentech se rozumí:\npodle bodu 6. a 7. zkontrolovat úklid provedený studenty. Přebrat klíče od pokoje. Podepsat potvrzení o řádně provedeném úklidu a odevzdání klíčů. Sepsat a nahlásit vedení koleje všechny závady a škody. V případě nutnosti upozornit studenty na nedostatky v úklidu s tím, že je musí ve stanovené době odstranit, po té provést novou kontrolu úklidu. V případě, že ani napodruhé nebude pokoj řádně uklizen nahlásit tuto skutečnost vedení koleje."]
["11.","Úklidem výtahu se rozumí:\nzametení a vytření podlahy, vyčištění dveřních drážek, mytí stěn, mytí světel, jsou li instalována vyleštění zrcadel."]
["12.","Mytím oken se rozumí:\nmytí a leštění skel, mytí rámů, mytí parapetu, jsou-li instalovány setření žaluzií."]
["13.","Čištěním matrací:\nvyčištění matrací parním strojem."]
["14.","Úklidem WC se rozumí:\numýt, vyčistit a vydesinfikovat místnost WC, umýt záchodovou mísu zevnitř i zvenku umýt nohu a trubku za WC, umýt prkýnko a nádobu na splachovací vodu, popř. umýt pisoáry, umyvadla, baterie, obklady, odpady, podlahy a dveře. Otřít držák na toaletní papír. Umýt dlaždičky a silikon od plísně. Vylít vodu a otřít pouzdro na WC štětku. Vyleštit zrcadla. Vynést odpad. Setřít prach a pavučiny. Vždy za použití odpovídajícího mycího/čistícího přípravku."]
["15.","Úklidem koupelen a sprch se rozumí:\numýt, vyčistit a vydesinfikovat umyvadlo zevnitř i zvenku včetně trubek pod ním, baterie, sprchový kout, obklady, poličku nad umyvadlem i ve sprchovém koutě, odpady, podlahy a dveře. Umýt stěny sprchového koutu, gumové těsnění popř. závěs sprchového koutu. Odstranit rez a vodní kámen. Vynést odpad. Vyleštit zrcadlo, poličku, sprchu a držák na sprchu. Umýt dlaždičky a silikon od plísně. Vynést odpad. Setřít prach a pavučiny. Vždy za použití odpovídajícího mycího/čistícího přípravku"]